{"text_format":"1","workbook":"xlsx","n_sheets":15,"sheets":["MK","Min","Cad","Nat 150","Nat 160","Max","Max M","X 30","OPEN","KZ125","KZ125 Gentl","X 30G","Paramétrage","Module1","Module2"],"not_rendered":{"charts":0,"images":1,"macros":1,"external_links":0,"defined_names":69,"comments":0,"pivot_tables":0},"unopened":[{"sheet":"Module1","index":13,"reason":"part_missing"},{"sheet":"Module2","index":14,"reason":"part_missing"}],"bounds":{"document_bytes":16777216,"sheet_cells":100000,"rows_first":2000,"rows_last":500,"rows_between":2000,"halvings":0,"cell_chars":16384,"cell_head_chars":4096},"cells_cut":0,"cells_raw":0,"read":"whole","date_system":"1900"}

{"sheet":"MK","index":0,"n_rows":38,"n_cols":53,"rows_kept":38,"cut":false,"hidden":false,"merged":[[2,23,2,24],[2,13,2,14],[2,9,4,9],[2,11,2,12],[2,15,2,16],[2,10,4,10],[2,17,2,18],[2,19,2,20],[2,21,2,22],[1,39,1,52],[2,25,2,26],[2,33,2,34],[2,35,2,36],[2,27,2,28],[2,29,2,30],[2,31,2,32]]}
["Sens Trophy 2014",null,null,null,null,null,null,null,null,null,null,"Mini-Kart"]
[null,null,null,null,null,null,null,null,null,null,null,null,null,null,null,null,null,null,null,null,null,null,null,null,null,null,null,null,null,null,null,null,null,null,null,null,null,null,null,"Résultats supplémentaires"]
[null,"BFC",null,"Nom","Prénom",null,"ASK","Classé","Total","Nb Hors course","Points Bonus","2014-03-09",null,"2014-06-15",null,null,null,null,null,null,null,null,null,null,null,null,null,null,null,null,null,null,null,null,null,"2014-09-21",null,"Résultat max","Nb manches",1,2,3,4,5,6,7,8,9,10,11,12,13,14]
[null,null,null,null,null,null,null,null,null,null,null,"PF","F","PF","F","PF","F","PF","F","PF","F","PF","F","PF","F","PF","F","PF","F","PF","F","PF","F","PF","F","PF","F"]
[null,null,null,"Bonus Meilleur tour en course",null,null,null,null,null,null,null,"SPENLE Evan",null,"COSTET Enzo"]
[1,null,null,"AMAND Marcus",null,null,"Beltoise",{"$f":"IF(COUNTA(AK6)>0,IF(COUNTA(L6:AK6)<classé,\"Non\",\"Oui\"),\"Non\")","v":"Non"},{"$f":"SUM(L6:AK6)-SUM(AN6:BA6)+K6","v":144},null,{"$f":"COUNTIF(L$5:AK$5,$D6)*4","v":0},40,40,32,32,null,null,null,null,null,null,null,null,null,null,null,null,null,null,null,null,null,null,null,null,null,null,{"$f":"MAX(L6:AK6)","v":40},{"$f":"COUNTA(L6:AK6)","v":4},{"$f":"IF($AM6>Nbcourse+AN$3-1-$J6,LARGE($L6:$AK6,Nbcourse+AN$3-$J6),0)","v":0},0,0,0,0,0,0,0,0,0,0,0,0,0]
[{"$f":"A6+1","v":2},null,null,"DUCLOS Thibault",null,null,"Rosny","Non",125,null,0,50,50,12,13,null,null,null,null,null,null,null,null,null,null,null,null,null,null,null,null,null,null,null,null,null,null,50,4,0,0,0,0,0,0,0,0,0,0,0,0,0,0]
[3,null,null,"PECRIAUX Mathys",null,null,"Rosny","Non",120,null,0,32,22,26,40,null,null,null,null,null,null,null,null,null,null,null,null,null,null,null,null,null,null,null,null,null,null,40,4,0,0,0,0,0,0,0,0,0,0,0,0,0,0]
[4,null,null,"METTETAL Jules",null,null,"Loches","Non",100,null,0,null,null,50,50,null,null,null,null,null,null,null,null,null,null,null,null,null,null,null,null,null,null,null,null,null,null,50,2,0,0,0,0,0,0,0,0,0,0,0,0,0,0]
[5,null,null,"OUTALMIT Farès",null,null,"Rosny","Non",98,null,0,26,32,20,20,null,null,null,null,null,null,null,null,null,null,null,null,null,null,null,null,null,null,null,null,null,null,32,4,0,0,0,0,0,0,0,0,0,0,0,0,0,0]
[6,null,null,"HAMON Ethan",null,null,"Cormeilles","Non",86,null,0,22,16,22,26,null,null,null,null,null,null,null,null,null,null,null,null,null,null,null,null,null,null,null,null,null,null,26,4,0,0,0,0,0,0,0,0,0,0,0,0,0,0]
[7,null,null,"MANGIN Arthur",null,null,"Salbris","Non",74,null,0,19,19,17,19,null,null,null,null,null,null,null,null,null,null,null,null,null,null,null,null,null,null,null,null,null,null,19,4,0,0,0,0,0,0,0,0,0,0,0,0,0,0]
[8,null,null,"MAITRE Neill",null,null,21,"Non",68,null,0,18,26,13,11,null,null,null,null,null,null,null,null,null,null,null,null,null,null,null,null,null,null,null,null,null,null,26,4,0,0,0,0,0,0,0,0,0,0,0,0,0,0]
[9,null,null,"SPENLE Evan",null,null,"Bretigny","Non",64,null,4,9,20,15,16,null,null,null,null,null,null,null,null,null,null,null,null,null,null,null,null,null,null,null,null,null,null,20,4,0,0,0,0,0,0,0,0,0,0,0,0,0,0]
[10,null,null,"RIVIERE Luca",null,null,"Sens","Non",62,null,0,14,15,16,17,null,null,null,null,null,null,null,null,null,null,null,null,null,null,null,null,null,null,null,null,null,null,17,4,0,0,0,0,0,0,0,0,0,0,0,0,0,0]
[11,null,null,"CAPIETTO Maceo",null,null,"Dourdan","Non",61,null,0,17,7,19,18,null,null,null,null,null,null,null,null,null,null,null,null,null,null,null,null,null,null,null,null,null,null,19,4,{"$f":"IF($AM16>Nbcourse+AN$3-1-$J16,LARGE($L16:$AK16,Nbcourse+AN$3-$J16),0)","v":0},0,0,0,0,0,0,0,0,0,0,0,0,0]
[12,null,null,"PARTHENAY Gabin",null,null,"La Rochelle","Non",57,null,0,11,18,14,14,null,null,null,null,null,null,null,null,null,null,null,null,null,null,null,null,null,null,null,null,null,null,18,4,0,0,0,0,0,0,0,0,0,0,0,0,0,0]
[13,null,null,"VAYRON Elliott",null,null,"Sens","Non",56,null,0,16,14,11,15,null,null,null,null,null,null,null,null,null,null,null,null,null,null,null,null,null,null,null,null,null,null,16,4,0,0,0,0,0,0,0,0,0,0,0,0,0,0]
[14,null,null,"COSTET Enzo",null,null,"Rosny","Non",51,null,4,null,null,40,7,null,null,null,null,null,null,null,null,null,null,null,null,null,null,null,null,null,null,null,null,null,null,40,2,0,0,0,0,0,0,0,0,0,0,0,0,0,0]
[15,null,null,"JIMENEZ SERRANO Gabriel",null,null,"Rosny","Non",40,2,0,0,0,18,22,null,null,null,null,null,null,null,null,null,null,null,null,null,null,null,null,null,null,null,null,null,null,22,4,0,0,0,0,0,0,0,0,0,0,0,0,0,0]
[16,null,null,"ROY Coranthyn",null,null,"Sens","Non",39,null,0,12,11,7,9,null,null,null,null,null,null,null,null,null,null,null,null,null,null,null,null,null,null,null,null,null,null,12,4,0,0,0,0,0,0,0,0,0,0,0,0,0,0]
[17,null,null,"COSTA Valentin",null,null,"Rosny","Non",37,null,0,20,17,null,null,null,null,null,null,null,null,null,null,null,null,null,null,null,null,null,null,null,null,null,null,null,null,20,2,0,0,0,0,0,0,0,0,0,0,0,0,0,0]
[18,null,null,"CARDOSO Enzo",null,null,"Rosny","Non",33,null,0,8,10,9,6,null,null,null,null,null,null,null,null,null,null,null,null,null,null,null,null,null,null,null,null,null,null,10,4,0,0,0,0,0,0,0,0,0,0,0,0,0,0]
[19,null,null,"TAHON Julien",null,null,"Sens","Non",32,null,0,7,12,5,8,null,null,null,null,null,null,null,null,null,null,null,null,null,null,null,null,null,null,null,null,null,null,12,{"$f":"COUNTA(L24:AK24)","v":4},{"$f":"IF($AM24>Nbcourse+AN$3-1-$J24,LARGE($L24:$AK24,Nbcourse+AN$3-$J24),0)","v":0},0,0,0,0,0,0,0,0,0,0,0,0,0]
[20,null,null,"PECRIAUX Thiméo",null,null,"Rosny","Non",31,null,0,13,8,6,4,null,null,null,null,null,null,null,null,null,null,null,null,null,null,null,null,null,null,null,null,null,null,13,4,0,0,0,0,0,0,0,0,0,0,0,0,0,0]
[21,null,null,"BOISSON Madeline",null,null,"Luronne","Non",28,null,0,15,13,null,null,null,null,null,null,null,null,null,null,null,null,null,null,null,null,null,null,null,null,null,null,null,null,15,2,0,0,0,0,0,0,0,0,0,0,0,0,0,0]
[22,null,null,"ROCHE Arthur",null,null,"Loches","Non",22,null,0,null,null,10,12,null,null,null,null,null,null,null,null,null,null,null,null,null,null,null,null,null,null,null,null,null,null,12,2,0,0,0,0,0,0,0,0,0,0,0,0,0,0]
[23,null,null,"GORGE Raphael",null,null,"Rosny","Non",23,null,0,10,9,2,2,null,null,null,null,null,null,null,null,null,null,null,null,null,null,null,null,null,null,null,null,null,null,10,4,0,0,0,0,0,0,0,0,0,0,0,0,0,0]
[24,null,null,"NAU Simon",null,null,"Salbris","Non",14,null,0,null,null,4,10,null,null,null,null,null,null,null,null,null,null,null,null,null,null,null,null,null,null,null,null,null,null,10,2,0,0,0,0,0,0,0,0,0,0,0,0,0,0]
[25,null,null,"LEGROS Antonin",null,null,"Reims","Non",13,null,0,null,null,8,5,null,null,null,null,null,null,null,null,null,null,null,null,null,null,null,null,null,null,null,null,null,null,8,2,0,0,0,0,0,0,0,0,0,0,0,0,0,0]
[26,null,null,"GORGE Baptiste",null,null,"Rosny","Non",6,2,0,0,0,3,3,null,null,null,null,null,null,null,null,null,null,null,null,null,null,null,null,null,null,null,null,null,null,3,4,0,0,0,0,0,0,0,0,0,0,0,0,0,0]
[27,null,null,null,null,null,null,"Non",0,null,0,null,null,null,null,null,null,null,null,null,null,null,null,null,null,null,null,null,null,null,null,null,null,null,null,null,null,0,0,0,0,0,0,0,0,0,0,0,0,0,0,0,0]
[28,null,null,null,null,null,null,"Non",0,null,0,null,null,null,null,null,null,null,null,null,null,null,null,null,null,null,null,null,null,null,null,null,null,null,null,null,null,0,0,0,0,0,0,0,0,0,0,0,0,0,0,0,0]
[29,null,null,null,null,null,null,"Non",0,null,0,null,null,null,null,null,null,null,null,null,null,null,null,null,null,null,null,null,null,null,null,null,null,null,null,null,null,0,0,0,0,0,0,0,0,0,0,0,0,0,0,0,0]
[30,null,null,null,null,null,null,"Non",0,null,0,null,null,null,null,null,null,null,null,null,null,null,null,null,null,null,null,null,null,null,null,null,null,null,null,null,null,0,0,0,0,0,0,0,0,0,0,0,0,0,0,0,0]
[31,null,null,null,null,null,null,"Non",0,null,0,null,null,null,null,null,null,null,null,null,null,null,null,null,null,null,null,null,null,null,null,null,null,null,null,null,null,0,{"$f":"COUNTA(L36:AK36)","v":0},0,0,0,0,0,0,0,0,0,0,0,0,0,0]
[null,null,"Nombre de Participants",null,null,null,null,null,null,null,null,{"$f":"COUNT(L$6:L36)","v":21},{"$f":"COUNT(M$6:M36)","v":21},{"$f":"COUNT(N$6:N36)","v":24},{"$f":"COUNT(O$6:O36)","v":24},{"$f":"COUNT(P$6:P36)","v":0},{"$f":"COUNT(Q$6:Q36)","v":0},{"$f":"COUNT(R$6:R36)","v":0},{"$f":"COUNT(S$6:S36)","v":0},{"$f":"COUNT(T$6:T36)","v":0},{"$f":"COUNT(U$6:U36)","v":0},{"$f":"COUNT(V$6:V36)","v":0},{"$f":"COUNT(W$6:W36)","v":0},{"$f":"COUNT(X$6:X36)","v":0},{"$f":"COUNT(Y$6:Y36)","v":0},{"$f":"COUNT(Z$6:Z36)","v":0},{"$f":"COUNT(AA$6:AA36)","v":0},{"$f":"COUNT(AB$6:AB36)","v":0},{"$f":"COUNT(AC$6:AC36)","v":0},{"$f":"COUNT(AD$6:AD36)","v":0},{"$f":"COUNT(AE$6:AE36)","v":0},{"$f":"COUNT(AF$6:AF36)","v":0},{"$f":"COUNT(AG$6:AG36)","v":0},{"$f":"COUNT(AH$6:AH36)","v":0},{"$f":"COUNT(AI$6:AI36)","v":0},{"$f":"COUNT(AJ$6:AJ36)","v":0}]
[null,null,null,null,null,"Nb de manches comptabilisées :",{"$f":"Nbcourse","v":5},null,null,null,null,null,null,null,null,null,null,null,null,null,null,null,null,"Pour être classé, il faut avoir participé à au moins",{"$f":"classé/2","v":2},"courses"]

{"sheet":"Min","index":1,"n_rows":37,"n_cols":53,"rows_kept":37,"cut":false,"hidden":false,"merged":[[1,39,1,52],[2,25,2,26],[2,33,2,34],[2,35,2,36],[2,27,2,28],[2,29,2,30],[2,31,2,32],[2,23,2,24],[2,13,2,14],[2,9,4,9],[2,11,2,12],[2,15,2,16],[2,10,4,10],[2,17,2,18],[2,19,2,20],[2,21,2,22]]}
["Sens Trophy 2013",null,null,null,null,null,null,null,null,null,null,"Minime"]
[null,null,null,null,null,null,null,null,null,null,null,null,null,null,null,null,null,null,null,null,null,null,null,null,null,null,null,null,null,null,null,null,null,null,null,null,null,null,null,"Résultats supplémentaires"]
[null,"BFC",null,"Nom","Prénom",null,"ASK","Classé","Total","Nb Hors course","Points Bonus","2014-03-09",null,"2014-06-15",null,null,null,null,null,null,null,null,null,null,null,null,null,null,null,null,null,null,null,null,null,"2014-09-21",null,"Résultat max","Nb manches",1,2,3,4,5,6,7,8,9,10,11,12,13,14]
[null,null,null,null,null,null,null,null,null,null,null,"PF","F","PF","F","PF","F","PF","F","PF","F","PF","F","PF","F","PF","F","PF","F","PF","F","PF","F","PF","F","PF","F"]
[null,null,null,"Bonus Meilleur tour en course",null,null,null,null,null,null,null,"Nicolino Maxime",null,"Fraysse Kilian"]
[1,null,null,"Henrion Gillian",null,null,"Rosny",{"$f":"IF(COUNTA(AK6)>0,IF(COUNTA(L6:AK6)<classé,\"Non\",\"Oui\"),\"Non\")","v":"Non"},{"$f":"SUM(L6:AK6)-SUM(AN6:BA6)+K6","v":190},null,{"$f":"COUNTIF(L$5:AK$5,$D6)*4","v":0},50,50,40,50,null,null,null,null,null,null,null,null,null,null,null,null,null,null,null,null,null,null,null,null,null,null,{"$f":"MAX(L6:AK6)","v":50},{"$f":"COUNTA(L6:AK6)","v":4},{"$f":"IF($AM6>Nbcourse+AN$3-1-$J6,LARGE($L6:$AK6,Nbcourse+AN$3-$J6),0)","v":0},0,0,0,0,0,0,0,0,0,0,0,0,0]
[{"$f":"A6+1","v":2},null,null,"Fraysse Kilian",null,null,"Sens","Non",153,null,4,19,40,50,40,null,null,null,null,null,null,null,null,null,null,null,null,null,null,null,null,null,null,null,null,null,null,50,4,0,0,0,0,0,0,0,0,0,0,0,0,0,0]
[3,null,null,"Droux Damyen",null,null,"Salbris","Non",92,null,0,26,22,22,22,null,null,null,null,null,null,null,null,null,null,null,null,null,null,null,null,null,null,null,null,null,null,26,4,0,0,0,0,0,0,0,0,0,0,0,0,0,0]
[4,null,null,"Dionnet Théo",null,null,"Sens","Non",81,null,0,22,20,19,20,null,null,null,null,null,null,null,null,null,null,null,null,null,null,null,null,null,null,null,null,null,null,22,4,0,0,0,0,0,0,0,0,0,0,0,0,0,0]
[5,null,null,"Le Tallec Hugo",null,null,"Rosny","Non",78,null,0,20,19,20,19,null,null,null,null,null,null,null,null,null,null,null,null,null,null,null,null,null,null,null,null,null,null,20,4,0,0,0,0,0,0,0,0,0,0,0,0,0,0]
[6,null,null,"Nicolino Maxime",null,null,"Mantes","Non",76,null,4,40,32,null,null,null,null,null,null,null,null,null,null,null,null,null,null,null,null,null,null,null,null,null,null,null,null,40,2,0,0,0,0,0,0,0,0,0,0,0,0,0,0]
[7,null,null,"Hadjar Isack",null,null,"Sens","Non",64,null,0,null,null,32,32,null,null,null,null,null,null,null,null,null,null,null,null,null,null,null,null,null,null,null,null,null,null,32,2,0,0,0,0,0,0,0,0,0,0,0,0,0,0]
[8,null,null,"David Hadrien",null,null,"Royan","Non",58,null,0,32,26,null,null,null,null,null,null,null,null,null,null,null,null,null,null,null,null,null,null,null,null,null,null,null,null,32,2,0,0,0,0,0,0,0,0,0,0,0,0,0,0]
[9,null,null,"Heyert Theo",null,null,"Lommerange","Non",52,null,0,null,null,26,26,null,null,null,null,null,null,null,null,null,null,null,null,null,null,null,null,null,null,null,null,null,null,26,2,0,0,0,0,0,0,0,0,0,0,0,0,0,0]
[10,null,null,null,null,null,null,"Non",0,null,0,null,null,null,null,null,null,null,null,null,null,null,null,null,null,null,null,null,null,null,null,null,null,null,null,null,null,0,0,0,0,0,0,0,0,0,0,0,0,0,0,0,0]
[11,null,null,null,null,null,null,"Non",0,null,0,null,null,null,null,null,null,null,null,null,null,null,null,null,null,null,null,null,null,null,null,null,null,null,null,null,null,0,0,{"$f":"IF($AM16>Nbcourse+AN$3-1-$J16,LARGE($L16:$AK16,Nbcourse+AN$3-$J16),0)","v":0},0,0,0,0,0,0,0,0,0,0,0,0,0]
[12,null,null,null,null,null,null,"Non",0,null,0,null,null,null,null,null,null,null,null,null,null,null,null,null,null,null,null,null,null,null,null,null,null,null,null,null,null,0,0,0,0,0,0,0,0,0,0,0,0,0,0,0,0]
[13,null,null,null,null,null,null,"Non",0,null,0,null,null,null,null,null,null,null,null,null,null,null,null,null,null,null,null,null,null,null,null,null,null,null,null,null,null,0,0,0,0,0,0,0,0,0,0,0,0,0,0,0,0]
[14,null,null,null,null,null,null,"Non",0,null,0,null,null,null,null,null,null,null,null,null,null,null,null,null,null,null,null,null,null,null,null,null,null,null,null,null,null,0,0,0,0,0,0,0,0,0,0,0,0,0,0,0,0]
[15,null,null,null,null,null,null,"Non",0,null,0,null,null,null,null,null,null,null,null,null,null,null,null,null,null,null,null,null,null,null,null,null,null,null,null,null,null,0,0,0,0,0,0,0,0,0,0,0,0,0,0,0,0]
[16,null,null,null,null,null,null,"Non",0,null,0,null,null,null,null,null,null,null,null,null,null,null,null,null,null,null,null,null,null,null,null,null,null,null,null,null,null,0,0,0,0,0,0,0,0,0,0,0,0,0,0,0,0]
[17,null,null,null,null,null,null,"Non",0,null,0,null,null,null,null,null,null,null,null,null,null,null,null,null,null,null,null,null,null,null,null,null,null,null,null,null,null,0,0,0,0,0,0,0,0,0,0,0,0,0,0,0,0]
[18,null,null,null,null,null,null,"Non",0,null,0,null,null,null,null,null,null,null,null,null,null,null,null,null,null,null,null,null,null,null,null,null,null,null,null,null,null,0,0,0,0,0,0,0,0,0,0,0,0,0,0,0,0]
[19,null,null,null,null,null,null,"Non",0,null,0,null,null,null,null,null,null,null,null,null,null,null,null,null,null,null,null,null,null,null,null,null,null,null,null,null,null,0,0,0,0,0,0,0,0,0,0,0,0,0,0,0,0]
[20,null,null,null,null,null,null,"Non",0,null,0,null,null,null,null,null,null,null,null,null,null,null,null,null,null,null,null,null,null,null,null,null,null,null,null,null,null,0,{"$f":"COUNTA(L25:AK25)","v":0},0,0,0,0,0,0,0,0,0,0,0,0,0,0]
[21,null,null,null,null,null,null,"Non",0,null,0,null,null,null,null,null,null,null,null,null,null,null,null,null,null,null,null,null,null,null,null,null,null,null,null,null,null,0,0,{"$f":"IF($AM26>Nbcourse+AN$3-1-$J26,LARGE($L26:$AK26,Nbcourse+AN$3-$J26),0)","v":0},0,0,0,0,0,0,0,0,0,0,0,0,0]
[22,null,null,null,null,null,null,"Non",0,null,0,null,null,null,null,null,null,null,null,null,null,null,null,null,null,null,null,null,null,null,null,null,null,null,null,null,null,0,0,0,0,0,0,0,0,0,0,0,0,0,0,0,0]
[23,null,null,null,null,null,null,"Non",0,null,0,null,null,null,null,null,null,null,null,null,null,null,null,null,null,null,null,null,null,null,null,null,null,null,null,null,null,0,0,0,0,0,0,0,0,0,0,0,0,0,0,0,0]
[24,null,null,null,null,null,null,"Non",0,null,0,null,null,null,null,null,null,null,null,null,null,null,null,null,null,null,null,null,null,null,null,null,null,null,null,null,null,0,0,0,0,0,0,0,0,0,0,0,0,0,0,0,0]
[25,null,null,null,null,null,null,"Non",0,null,0,null,null,null,null,null,null,null,null,null,null,null,null,null,null,null,null,null,null,null,null,null,null,null,null,null,null,0,0,0,0,0,0,0,0,0,0,0,0,0,0,0,0]
[26,null,null,null,null,null,null,"Non",0,null,0,null,null,null,null,null,null,null,null,null,null,null,null,null,null,null,null,null,null,null,null,null,null,null,null,null,null,0,0,0,0,0,0,0,0,0,0,0,0,0,0,0,0]
[27,null,null,null,null,null,null,"Non",0,null,0,null,null,null,null,null,null,null,null,null,null,null,null,null,null,null,null,null,null,null,null,null,null,null,null,null,null,0,0,0,0,0,0,0,0,0,0,0,0,0,0,0,0]
[28,null,null,null,null,null,null,"Non",0,null,0,null,null,null,null,null,null,null,null,null,null,null,null,null,null,null,null,null,null,null,null,null,null,null,null,null,null,0,0,{"$f":"IF($AM33>Nbcourse+AN$3-1-$J33,LARGE($L33:$AK33,Nbcourse+AN$3-$J33),0)","v":0},{"$f":"IF($AM33>Nbcourse+AO$3-1-$J33,LARGE($L33:$AK33,Nbcourse+AO$3-$J33),0)","v":0},{"$f":"IF($AM33>Nbcourse+AP$3-1-$J33,LARGE($L33:$AK33,Nbcourse+AP$3-$J33),0)","v":0},{"$f":"IF($AM33>Nbcourse+AQ$3-1-$J33,LARGE($L33:$AK33,Nbcourse+AQ$3-$J33),0)","v":0},0,0,0,0,0,0,0,0,0,0]
[29,null,null,null,null,null,null,"Non",0,null,0,null,null,null,null,null,null,null,null,null,null,null,null,null,null,null,null,null,null,null,null,null,null,null,null,null,null,0,0,{"$f":"IF($AM34>Nbcourse+AN$3-1-$J34,LARGE($L34:$AK34,Nbcourse+AN$3-$J34),0)","v":0},0,0,0,0,0,0,0,0,0,0,0,0,0]
[30,null,null,null,null,null,null,"Non",0,null,0,null,null,null,null,null,null,null,null,null,null,null,null,null,null,null,null,null,null,null,null,null,null,null,null,null,null,0,0,0,0,0,0,0,0,0,0,0,0,0,0,0,0]
[null,null,"Nombre de Participants",null,null,null,null,null,null,null,null,{"$f":"COUNT(L$6:L35)","v":7},{"$f":"COUNT(M$6:M35)","v":7},{"$f":"COUNT(N$6:N35)","v":7},{"$f":"COUNT(O$6:O35)","v":7},{"$f":"COUNT(P$6:P35)","v":0},{"$f":"COUNT(Q$6:Q35)","v":0},{"$f":"COUNT(R$6:R35)","v":0},{"$f":"COUNT(S$6:S35)","v":0},{"$f":"COUNT(T$6:T35)","v":0},{"$f":"COUNT(U$6:U35)","v":0},{"$f":"COUNT(V$6:V35)","v":0},{"$f":"COUNT(W$6:W35)","v":0},{"$f":"COUNT(X$6:X35)","v":0},{"$f":"COUNT(Y$6:Y35)","v":0},{"$f":"COUNT(Z$6:Z35)","v":0},{"$f":"COUNT(AA$6:AA35)","v":0},{"$f":"COUNT(AB$6:AB35)","v":0},{"$f":"COUNT(AC$6:AC35)","v":0},{"$f":"COUNT(AD$6:AD35)","v":0},{"$f":"COUNT(AE$6:AE35)","v":0},{"$f":"COUNT(AF$6:AF35)","v":0},{"$f":"COUNT(AG$6:AG35)","v":0},{"$f":"COUNT(AH$6:AH35)","v":0},{"$f":"COUNT(AI$6:AI35)","v":0},{"$f":"COUNT(AJ$6:AJ35)","v":0},{"$f":"COUNT(AK$6:AK35)","v":0}]
[null,null,null,null,null,"Nb de manches comptabilisées :",{"$f":"Nbcourse","v":5},null,null,null,null,null,null,null,null,null,null,null,null,null,null,null,null,"Pour être classé, il faut avoir participé à au moins",{"$f":"classé/2","v":2},"courses"]

{"sheet":"Cad","index":2,"n_rows":37,"n_cols":53,"rows_kept":37,"cut":false,"hidden":false,"merged":[[2,23,2,24],[2,13,2,14],[2,9,4,9],[2,11,2,12],[2,15,2,16],[2,10,4,10],[2,17,2,18],[2,19,2,20],[2,21,2,22],[1,39,1,52],[2,25,2,26],[2,33,2,34],[2,35,2,36],[2,27,2,28],[2,29,2,30],[2,31,2,32]]}
["Sens Trophy 2014",null,null,null,null,null,null,null,null,null,null,"Cadet"]
[null,null,null,null,null,null,null,null,null,null,null,null,null,null,null,null,null,null,null,null,null,null,null,null,null,null,null,null,null,null,null,null,null,null,null,null,null,null,null,"Résultats supplémentaires"]
[null,"BFC",null,"Nom","Prénom",null,"ASK","Classé","Total","Nb Hors course","Points Bonus","2014-03-09",null,"2014-06-15",null,null,null,null,null,null,null,null,null,null,null,null,null,null,null,null,null,null,null,null,null,"2014-09-21",null,"Résultat max","Nb manches",1,2,3,4,5,6,7,8,9,10,11,12,13,14]
[null,null,null,null,null,null,null,null,null,null,null,"PF","F","PF","F","PF","F","PF","F","PF","F","PF","F","PF","F","PF","F","PF","F","PF","F","PF","F","PF","F","PF","F"]
[null,null,null,"Bonus Meilleur tour en course",null,null,null,null,null,null,null,"POURCHAIRE Théo",null,"CLEMENT Thibaut"]
[1,null,null,"DIAS Xavier",null,null,"Rosny",{"$f":"IF(COUNTA(AK6)>0,IF(COUNTA(L6:AK6)<classé,\"Non\",\"Oui\"),\"Non\")","v":"Non"},{"$f":"SUM(L6:AK6)-SUM(AN6:BA6)+K6","v":162},null,{"$f":"COUNTIF(L$5:AK$5,$D6)*4","v":0},40,40,32,50,null,null,null,null,null,null,null,null,null,null,null,null,null,null,null,null,null,null,null,null,null,null,{"$f":"MAX(L6:AK6)","v":50},{"$f":"COUNTA(L6:AK6)","v":4},{"$f":"IF($AM6>Nbcourse+AN$3-1-$J6,LARGE($L6:$AK6,Nbcourse+AN$3-$J6),0)","v":0},0,0,0,0,0,0,0,0,0,0,0,0,0]
[{"$f":"A6+1","v":2},null,null,"NOMBLOT Jean",null,null,"Sens","Non",146,null,0,32,32,50,32,null,null,null,null,null,null,null,null,null,null,null,null,null,null,null,null,null,null,null,null,null,null,50,4,0,0,0,0,0,0,0,0,0,0,0,0,0,0]
[3,null,null,"POURCHAIRE Théo",null,null,"Rosny","Non",104,null,4,50,50,null,null,null,null,null,null,null,null,null,null,null,null,null,null,null,null,null,null,null,null,null,null,null,null,50,2,0,0,0,0,0,0,0,0,0,0,0,0,0,0]
[4,null,null,"CLEMENT Thibaut",null,null,"Rosny","Non",84,null,4,null,null,40,40,null,null,null,null,null,null,null,null,null,null,null,null,null,null,null,null,null,null,null,null,null,null,40,2,0,0,0,0,0,0,0,0,0,0,0,0,0,0]
[5,null,null,"CARBONNEL Arthur",null,null,"Salbris","Non",71,null,0,16,13,22,20,null,null,null,null,null,null,null,null,null,null,null,null,null,null,null,null,null,null,null,null,null,null,22,4,0,0,0,0,0,0,0,0,0,0,0,0,0,0]
[{"$f":"A10+1","v":6},null,null,"IMBOURG Thomas",null,null,"Rosny","Non",64,null,0,8,14,20,22,null,null,null,null,null,null,null,null,null,null,null,null,null,null,null,null,null,null,null,null,null,null,22,4,0,0,0,0,0,0,0,0,0,0,0,0,0,0]
[{"$f":"A11+1","v":7},null,null,"TRIMOUILLE Andréa",null,null,"Sens","Non",62,null,0,14,11,18,19,null,null,null,null,null,null,null,null,null,null,null,null,null,null,null,null,null,null,null,null,null,null,19,4,0,0,0,0,0,0,0,0,0,0,0,0,0,0]
[{"$f":"A12+1","v":8},null,null,"MIALANE Thomas",null,null,"Sens","Non",52,null,0,null,null,26,26,null,null,null,null,null,null,null,null,null,null,null,null,null,null,null,null,null,null,null,null,null,null,26,2,0,0,0,0,0,0,0,0,0,0,0,0,0,0]
[9,null,null,"JEAN Maxime",null,null,"Cormeilles","Non",52,null,0,11,9,16,16,null,null,null,null,null,null,null,null,null,null,null,null,null,null,null,null,null,null,null,null,null,null,16,4,0,0,0,0,0,0,0,0,0,0,0,0,0,0]
[10,null,null,"NICOLINO Henri-Jean",null,null,"Mantes","Non",48,null,0,26,22,null,null,null,null,null,null,null,null,null,null,null,null,null,null,null,null,null,null,null,null,null,null,null,null,26,2,0,0,0,0,0,0,0,0,0,0,0,0,0,0]
[11,null,null,"SZYMANSKI Hugo",null,null,"Meudon","Non",48,null,0,22,26,null,null,null,null,null,null,null,null,null,null,null,null,null,null,null,null,null,null,null,null,null,null,null,null,26,2,{"$f":"IF($AM16>Nbcourse+AN$3-1-$J16,LARGE($L16:$AK16,Nbcourse+AN$3-$J16),0)","v":0},0,0,0,0,0,0,0,0,0,0,0,0,0]
[12,null,null,"MOREL Thomas",null,null,"K 61","Non",39,null,0,20,19,null,null,null,null,null,null,null,null,null,null,null,null,null,null,null,null,null,null,null,null,null,null,null,null,20,2,0,0,0,0,0,0,0,0,0,0,0,0,0,0]
[13,null,null,"SANSON Julien",null,null,"Rosny","Non",39,null,0,19,20,null,null,null,null,null,null,null,null,null,null,null,null,null,null,null,null,null,null,null,null,null,null,null,null,20,2,0,0,0,0,0,0,0,0,0,0,0,0,0,0]
[14,null,null,"PROUTEAU Camille",null,null,"Salbris","Non",37,null,0,null,null,19,18,null,null,null,null,null,null,null,null,null,null,null,null,null,null,null,null,null,null,null,null,null,null,19,2,0,0,0,0,0,0,0,0,0,0,0,0,0,0]
[15,null,null,"BERTRAND William",null,null,"Angerville","Non",36,null,0,18,18,null,null,null,null,null,null,null,null,null,null,null,null,null,null,null,null,null,null,null,null,null,null,null,null,18,2,0,0,0,0,0,0,0,0,0,0,0,0,0,0]
[16,null,null,"DUPUIS Quentin",null,null,"Mantes","Non",34,null,0,17,17,null,null,null,null,null,null,null,null,null,null,null,null,null,null,null,null,null,null,null,null,null,null,null,null,17,2,0,0,0,0,0,0,0,0,0,0,0,0,0,0]
[17,null,null,"PIEL Côme",null,null,"Dunois","Non",34,null,0,null,null,17,17,null,null,null,null,null,null,null,null,null,null,null,null,null,null,null,null,null,null,null,null,null,null,17,2,0,0,0,0,0,0,0,0,0,0,0,0,0,0]
[18,null,null,"AVRAND Maxime",null,null,"Bretigny","Non",31,null,0,15,16,null,null,null,null,null,null,null,null,null,null,null,null,null,null,null,null,null,null,null,null,null,null,null,null,16,2,0,0,0,0,0,0,0,0,0,0,0,0,0,0]
[19,null,null,"BALACEANU Alexandre",null,null,"Rosny","Non",30,null,0,null,null,15,15,null,null,null,null,null,null,null,null,null,null,null,null,null,null,null,null,null,null,null,null,null,null,15,2,0,0,0,0,0,0,0,0,0,0,0,0,0,0]
[20,null,null,"MARTINS Victor",null,null,"Sens","Non",25,null,0,13,12,null,null,null,null,null,null,null,null,null,null,null,null,null,null,null,null,null,null,null,null,null,null,null,null,13,{"$f":"COUNTA(L25:AK25)","v":2},0,0,0,0,0,0,0,0,0,0,0,0,0,0]
[21,null,null,"VENIER Jonas",null,null,"La grande motte","Non",22,null,0,7,15,null,null,null,null,null,null,null,null,null,null,null,null,null,null,null,null,null,null,null,null,null,null,null,null,15,2,0,0,0,0,0,0,0,0,0,0,0,0,0,0]
[22,null,null,"HENIQUE Jérémy",null,null,"Salbris","Non",20,null,0,12,8,null,null,null,null,null,null,null,null,null,null,null,null,null,null,null,null,null,null,null,null,null,null,null,null,12,2,0,0,0,0,0,0,0,0,0,0,0,0,0,0]
[23,null,null,"ATALIAN Albert",null,null,"Sens","Non",20,null,0,10,10,null,null,null,null,null,null,null,null,null,null,null,null,null,null,null,null,null,null,null,null,null,null,null,null,10,2,0,0,0,0,0,0,0,0,0,0,0,0,0,0]
[24,null,null,"CORDIER Mathis",null,null,"Rosny","Non",16,null,0,9,7,null,null,null,null,null,null,null,null,null,null,null,null,null,null,null,null,null,null,null,null,null,null,null,null,9,2,0,0,0,0,0,0,0,0,0,0,0,0,0,0]
[25,null,null,"ANTOINE Mattéo",null,null,"Lorraine","Non",12,null,0,6,6,null,null,null,null,null,null,null,null,null,null,null,null,null,null,null,null,null,null,null,null,null,null,null,null,6,2,0,0,0,0,0,0,0,0,0,0,0,0,0,0]
[26,null,null,"ROUCHY Thomas",null,null,"Sens","Non",0,2,0,null,null,0,0,null,null,null,null,null,null,null,null,null,null,null,null,null,null,null,null,null,null,null,null,null,null,0,2,0,0,0,0,0,0,0,0,0,0,0,0,0,0]
[27,null,null,null,null,null,null,"Non",0,null,0,null,null,null,null,null,null,null,null,null,null,null,null,null,null,null,null,null,null,null,null,null,null,null,null,null,null,0,0,0,0,0,0,0,0,0,0,0,0,0,0,0,0]
[28,null,null,null,null,null,null,"Non",0,null,0,null,null,null,null,null,null,null,null,null,null,null,null,null,null,null,null,null,null,null,null,null,null,null,null,null,null,0,0,0,0,0,{"$f":"IF($AM33>Nbcourse+AQ$3-1-$J33,LARGE($L33:$AK33,Nbcourse+AQ$3-$J33),0)","v":0},0,0,0,0,0,0,0,0,0,0]
[29,null,null,null,null,null,null,"Non",0,null,0,null,null,null,null,null,null,null,null,null,null,null,null,null,null,null,null,null,null,null,null,null,null,null,null,null,null,0,0,{"$f":"IF($AM34>Nbcourse+AN$3-1-$J34,LARGE($L34:$AK34,Nbcourse+AN$3-$J34),0)","v":0},0,0,0,0,0,0,0,0,0,0,0,0,0]
[30,null,null,null,null,null,null,"Non",0,null,0,null,null,null,null,null,null,null,null,null,null,null,null,null,null,null,null,null,null,null,null,null,null,null,null,null,null,0,0,0,0,0,0,0,0,0,0,0,0,0,0,0,0]
[null,null,"Nombre de Participants",null,null,null,null,null,null,null,null,{"$f":"COUNT(L$6:L35)","v":20},{"$f":"COUNT(M$6:M35)","v":20},{"$f":"COUNT(N$6:N35)","v":12},{"$f":"COUNT(O$6:O35)","v":12},{"$f":"COUNT(P$6:P35)","v":0},{"$f":"COUNT(Q$6:Q35)","v":0},{"$f":"COUNT(R$6:R35)","v":0},{"$f":"COUNT(S$6:S35)","v":0},{"$f":"COUNT(T$6:T35)","v":0},{"$f":"COUNT(U$6:U35)","v":0},{"$f":"COUNT(V$6:V35)","v":0},{"$f":"COUNT(W$6:W35)","v":0},{"$f":"COUNT(X$6:X35)","v":0},{"$f":"COUNT(Y$6:Y35)","v":0},{"$f":"COUNT(Z$6:Z35)","v":0},{"$f":"COUNT(AA$6:AA35)","v":0},{"$f":"COUNT(AB$6:AB35)","v":0},{"$f":"COUNT(AC$6:AC35)","v":0},{"$f":"COUNT(AD$6:AD35)","v":0},{"$f":"COUNT(AE$6:AE35)","v":0},{"$f":"COUNT(AF$6:AF35)","v":0},{"$f":"COUNT(AG$6:AG35)","v":0},{"$f":"COUNT(AH$6:AH35)","v":0},{"$f":"COUNT(AI$6:AI35)","v":0},{"$f":"COUNT(AJ$6:AJ35)","v":0},{"$f":"COUNT(AK$6:AK35)","v":0}]
[null,null,null,null,null,"Nb de manches comptabilisées :",{"$f":"Nbcourse","v":5},null,null,null,null,null,null,null,null,null,null,null,null,null,null,null,null,"Pour être classé, il faut avoir participé à au moins",{"$f":"classé/2","v":2},"courses"]

{"sheet":"Nat 150","index":3,"n_rows":49,"n_cols":53,"rows_kept":49,"cut":false,"hidden":false,"merged":[[1,39,1,52],[2,25,2,26],[2,33,2,34],[2,35,2,36],[2,27,2,28],[2,29,2,30],[2,31,2,32],[2,23,2,24],[2,13,2,14],[2,9,4,9],[2,11,2,12],[2,15,2,16],[2,10,4,10],[2,17,2,18],[2,19,2,20],[2,21,2,22]]}
["Sens Trophy 2014",null,null,null,null,null,null,"Nationale 150"]
[null,null,null,null,null,null,null,null,null,null,null,null,null,null,null,null,null,null,null,null,null,null,null,null,null,null,null,null,null,null,null,null,null,null,null,null,null,null,null,"Résultats supplémentaires"]
[null,"BFC",null,"Nom","Prénom",null,"ASK","Classé","Total","Nb Hors course","Points Bonus","2014-03-09",null,"2014-06-15",null,null,null,null,null,null,null,null,null,null,null,null,null,null,null,null,null,null,null,null,null,"2014-09-21",null,"Résultat max","Nb manches",1,2,3,4,5,6,7,8,9,10,11,12,13,14]
[null,null,null,null,null,null,null,null,null,null,null,"PF","F","PF","F","PF","F","PF","F","PF","F","PF","F","PF","F","PF","F","PF","F","PF","F","PF","F","PF","F","PF","F"]
[null,null,null,"Bonus Meilleur tour en course",null,null,null,null,null,null,null,"CRETON Harald",null,"FENESTRAZ Sacha"]
[1,null,null,"PERCEVAL Antoine",null,null,"Bretigny",{"$f":"IF(COUNTA(AK6)>0,IF(COUNTA(L6:AK6)<classé,\"Non\",\"Oui\"),\"Non\")","v":"Non"},{"$f":"SUM(L6:AK6)-SUM(AN6:BA6)+K6","v":118},null,{"$f":"COUNTIF(L$5:AK$5,$D6)*4","v":0},20,22,26,50,null,null,null,null,null,null,null,null,null,null,null,null,null,null,null,null,null,null,null,null,null,null,{"$f":"MAX(L6:AK6)","v":50},{"$f":"COUNTA(L6:AK6)","v":4},{"$f":"IF($AM6>Nbcourse+AN$3-1-$J6,LARGE($L6:$AK6,Nbcourse+AN$3-$J6),0)","v":0},0,0,0,0,0,0,0,0,0,0,0,0,0]
[{"$f":"A6+1","v":2},null,null,"CRETON Harald",null,null,"Angerville","Non",104,null,4,50,50,null,null,null,null,null,null,null,null,null,null,null,null,null,null,null,null,null,null,null,null,null,null,null,null,50,2,0,0,0,0,0,0,0,0,0,0,0,0,0,0]
[3,null,null,"BELTRAMELLY Viny",null,null,"Sens","Non",104,null,0,12,20,32,40,null,null,null,null,null,null,null,null,null,null,null,null,null,null,null,null,null,null,null,null,null,null,40,4,0,0,0,0,0,0,0,0,0,0,0,0,0,0]
[{"$f":"A8+1","v":4},null,null,"FENESTRAZ Sacha",null,null,"Val d'Argenton","Non",86,null,4,null,null,50,32,null,null,null,null,null,null,null,null,null,null,null,null,null,null,null,null,null,null,null,null,null,null,50,2,0,0,0,0,0,0,0,0,0,0,0,0,0,0]
[{"$f":"A9+1","v":5},null,null,"RAMIANDRISOA Ambinintsoa",null,null,"Sens","Non",80,null,0,40,40,null,null,null,null,null,null,null,null,null,null,null,null,null,null,null,null,null,null,null,null,null,null,null,null,40,2,0,0,0,0,0,0,0,0,0,0,0,0,0,0]
[6,null,null,"GUERARD Martin",null,null,"Sens","Non",77,null,0,1,14,40,22,null,null,null,null,null,null,null,null,null,null,null,null,null,null,null,null,null,null,null,null,null,null,40,4,0,0,0,0,0,0,0,0,0,0,0,0,0,0]
[7,null,null,"HENRIO Hugo",null,null,"Sens","Non",70,null,0,15,15,20,20,null,null,null,null,null,null,null,null,null,null,null,null,null,null,null,null,null,null,null,null,null,null,20,4,0,0,0,0,0,0,0,0,0,0,0,0,0,0]
[8,null,null,"POULIQUEN Alexandre",null,null,"Bretigny","Non",64,2,0,32,32,0,0,null,null,null,null,null,null,null,null,null,null,null,null,null,null,null,null,null,null,null,null,null,null,32,4,0,0,0,0,0,0,0,0,0,0,0,0,0,0]
[9,null,null,"RETOU Alexandre",null,null,"Cormeilles","Non",61,null,0,19,13,18,11,null,null,null,null,null,null,null,null,null,null,null,null,null,null,null,null,null,null,null,null,null,null,19,4,0,0,0,0,0,0,0,0,0,0,0,0,0,0]
[10,null,null,"RENAUDIN Adrien",null,null,"Wissous","Non",52,null,0,26,26,null,null,null,null,null,null,null,null,null,null,null,null,null,null,null,null,null,null,null,null,null,null,null,null,26,2,0,0,0,0,0,0,0,0,0,0,0,0,0,0]
[11,null,null,"AÏT-OUAKLI David",null,null,"Sens","Non",51,null,0,7,12,15,17,null,null,null,null,null,null,null,null,null,null,null,null,null,null,null,null,null,null,null,null,null,null,17,4,0,0,0,0,0,0,0,0,0,0,0,0,0,0]
[12,null,null,"BOISSAY Clément",null,null,"JBH","Non",47,null,0,1,1,19,26,null,null,null,null,null,null,null,null,null,null,null,null,null,null,null,null,null,null,null,null,null,null,26,4,0,0,0,0,0,0,0,0,0,0,0,0,0,0]
[13,null,null,"HAEFFELI Nicolas",null,null,"Wittenheim","Non",41,null,0,null,null,22,19,null,null,null,null,null,null,null,null,null,null,null,null,null,null,null,null,null,null,null,null,null,null,22,2,0,0,0,0,0,0,0,0,0,0,0,0,0,0]
[14,null,null,"VENET François-Xavier",null,null,"Bretigny","Non",41,null,0,22,19,null,null,null,null,null,null,null,null,null,null,null,null,null,null,null,null,null,null,null,null,null,null,null,null,22,2,0,0,0,0,0,0,0,0,0,0,0,0,0,0]
[15,null,null,"SERANZI Maxime",null,null,"Sens","Non",41,null,0,2,4,17,18,null,null,null,null,null,null,null,null,null,null,null,null,null,null,null,null,null,null,null,null,null,null,18,4,0,0,0,0,0,0,0,0,0,0,0,0,0,0]
[16,null,null,"HAMDAOUI Rayanne",null,null,"Angerville","Non",36,null,0,18,18,null,null,null,null,null,null,null,null,null,null,null,null,null,null,null,null,null,null,null,null,null,null,null,null,18,2,0,0,0,0,0,0,0,0,0,0,0,0,0,0]
[17,null,null,"PINIER Pauline",null,null,"Rosny","Non",35,null,0,1,8,14,12,null,null,null,null,null,null,null,null,null,null,null,null,null,null,null,null,null,null,null,null,null,null,14,4,{"$f":"IF($AM22>Nbcourse+AN$3-1-$J22,LARGE($L22:$AK22,Nbcourse+AN$3-$J22),0)","v":0},0,0,0,0,0,0,0,0,0,0,0,0,0]
[18,null,null,"HOULETTE Valentine",null,null,"Rosny","Non",34,null,0,17,17,null,null,null,null,null,null,null,null,null,null,null,null,null,null,null,null,null,null,null,null,null,null,null,null,17,2,0,0,0,0,0,0,0,0,0,0,0,0,0,0]
[19,null,null,"SAMON Enzo",null,null,"ACO Paris","Non",32,null,0,16,16,null,null,null,null,null,null,null,null,null,null,null,null,null,null,null,null,null,null,null,null,null,null,null,null,16,2,0,0,0,0,0,0,0,0,0,0,0,0,0,0]
[20,null,null,"GUERREAU Camille",null,null,"Sens","Non",31,null,0,1,1,13,16,null,null,null,null,null,null,null,null,null,null,null,null,null,null,null,null,null,null,null,null,null,null,16,{"$f":"COUNTA(L25:AK25)","v":4},0,0,0,0,0,0,0,0,0,0,0,0,0,0]
[21,null,null,"TISSOT Léo",null,null,"Angerville","Non",29,null,0,null,null,16,13,null,null,null,null,null,null,null,null,null,null,null,null,null,null,null,null,null,null,null,null,null,null,16,2,0,0,0,0,0,0,0,0,0,0,0,0,0,0]
[22,null,null,"CHAGNON Tom",null,null,"JBH","Non",27,null,0,null,null,12,15,null,null,null,null,null,null,null,null,null,null,null,null,null,null,null,null,null,null,null,null,null,null,15,2,0,0,0,0,0,0,0,0,0,0,0,0,0,0]
[23,null,null,"GODCHAUX Pierre",null,null,"Sens","Non",27,null,0,1,1,11,14,null,null,null,null,null,null,null,null,null,null,null,null,null,null,null,null,null,null,null,null,null,null,14,4,0,0,0,0,0,0,0,0,0,0,0,0,0,0]
[24,null,null,"FONTAINE Paul",null,null,"Cormeilles","Non",20,null,0,10,10,null,null,null,null,null,null,null,null,null,null,null,null,null,null,null,null,null,null,null,null,null,null,null,null,10,2,0,0,0,0,0,0,0,0,0,0,0,0,0,0]
[25,null,null,"MORELLI Charlotte",null,null,"Cormeilles","Non",18,null,0,13,5,null,null,null,null,null,null,null,null,null,null,null,null,null,null,null,null,null,null,null,null,null,null,null,null,13,2,0,0,0,0,0,0,0,0,0,0,0,0,0,0]
[26,null,null,"COUSIN Antoine",null,null,"Bretigny","Non",18,null,0,9,9,null,null,null,null,null,null,null,null,null,null,null,null,null,null,null,null,null,null,null,null,null,null,null,null,9,2,0,0,0,0,0,0,0,0,0,0,0,0,0,0]
[27,null,null,"CHARPENTIER Tristan",null,null,"Bretigny","Non",15,null,0,14,1,null,null,null,null,null,null,null,null,null,null,null,null,null,null,null,null,null,null,null,null,null,null,null,null,14,2,0,0,0,0,0,0,0,0,0,0,0,0,0,0]
[28,null,null,"SIMOES Elodie",null,null,"Rosny","Non",14,null,0,8,6,null,null,null,null,null,null,null,null,null,null,null,null,null,null,null,null,null,null,null,null,null,null,null,null,8,2,0,0,0,0,0,0,0,0,0,0,0,0,0,0]
[29,null,null,"CAMMARATA Marc",null,null,"Cormeilles","Non",12,null,0,1,11,null,null,null,null,null,null,null,null,null,null,null,null,null,null,null,null,null,null,null,null,null,null,null,null,11,2,0,0,0,0,0,0,0,0,0,0,0,0,0,0]
[{"$f":"A34+1","v":30},null,null,"JALOUX Romain",null,null,"Bretigny","Non",12,null,0,11,1,null,null,null,null,null,null,null,null,null,null,null,null,null,null,null,null,null,null,null,null,null,null,null,null,11,{"$f":"COUNTA(L35:AK35)","v":2},0,0,0,0,0,0,0,0,0,0,0,0,0,0]
[31,null,null,"BELTRAMELLY Brady",null,null,"Sens","Non",11,null,0,4,7,null,null,null,null,null,null,null,null,null,null,null,null,null,null,null,null,null,null,null,null,null,null,null,null,7,2,0,0,0,0,0,0,0,0,0,0,0,0,0,0]
[32,null,null,"DUBAIL Yanis",null,null,"Angerville","Non",8,null,0,6,2,null,null,null,null,null,null,null,null,null,null,null,null,null,null,null,null,null,null,null,null,null,null,null,null,6,2,0,0,0,0,0,0,0,0,0,0,0,0,0,0]
[33,null,null,"BONNAIRE Alexandre",null,null,"Rosny","Non",6,null,0,5,1,null,null,null,null,null,null,null,null,null,null,null,null,null,null,null,null,null,null,null,null,null,null,null,null,5,2,0,0,0,0,0,0,0,0,0,0,0,0,0,0]
[34,null,null,"ADAM Quentin",null,null,"Lorraine","Non",4,null,0,3,1,null,null,null,null,null,null,null,null,null,null,null,null,null,null,null,null,null,null,null,null,null,null,null,null,3,2,0,0,0,{"$f":"IF($AM39>Nbcourse+AQ$3-1-$J39,LARGE($L39:$AK39,Nbcourse+AQ$3-$J39),0)","v":0},0,0,0,0,0,0,0,0,0,0]
[35,null,null,"VALICHON Lydie",null,null,"Cormeilles","Non",4,null,0,1,3,null,null,null,null,null,null,null,null,null,null,null,null,null,null,null,null,null,null,null,null,null,null,null,null,3,2,{"$f":"IF($AM40>Nbcourse+AN$3-1-$J40,LARGE($L40:$AK40,Nbcourse+AN$3-$J40),0)","v":0},0,0,0,0,0,0,0,0,0,0,0,0,0]
[36,null,null,"BOUDOT Jérémy",null,null,"Chalon","Non",2,null,0,1,1,null,null,null,null,null,null,null,null,null,null,null,null,null,null,null,null,null,null,null,null,null,null,null,null,1,2,0,0,0,0,0,0,0,0,0,0,0,0,0,0]
[37,null,null,"GENEST Louis",null,null,"Wissous","Non",2,null,0,1,1,null,null,null,null,null,null,null,null,null,null,null,null,null,null,null,null,null,null,null,null,null,null,null,null,1,2,0,0,0,0,0,0,0,0,0,0,0,0,0,0]
[38,null,null,"GUERINOT Valentin",null,null,"Bretigny","Non",2,null,0,1,1,null,null,null,null,null,null,null,null,null,null,null,null,null,null,null,null,null,null,null,null,null,null,null,null,1,2,0,0,0,0,0,0,0,0,0,0,0,0,0,0]
[39,null,null,"IBANEZ François",null,null,"Sens","Non",2,null,0,1,1,null,null,null,null,null,null,null,null,null,null,null,null,null,null,null,null,null,null,null,null,null,null,null,null,1,2,0,0,0,0,0,0,0,0,0,0,0,0,0,0]
[40,null,null,"MARTINS Nicolas",null,null,"Sens","Non",2,null,0,1,1,null,null,null,null,null,null,null,null,null,null,null,null,null,null,null,null,null,null,null,null,null,null,null,null,1,2,0,0,0,{"$f":"IF($AM45>Nbcourse+AQ$3-1-$J45,LARGE($L45:$AK45,Nbcourse+AQ$3-$J45),0)","v":0},0,0,0,0,0,0,0,0,0,0]
[41,null,null,"VENTURI Florian",null,null,"Rosny","Non",0,2,0,0,0,null,null,null,null,null,null,null,null,null,null,null,null,null,null,null,null,null,null,null,null,null,null,null,null,0,2,0,0,0,0,0,0,0,0,0,0,0,0,0,0]
[42,null,null,null,null,null,null,"Non",0,null,0,null,null,null,null,null,null,null,null,null,null,null,null,null,null,null,null,null,null,null,null,null,null,null,null,null,null,0,0,0,0,0,0,0,0,0,0,0,0,0,0,0,0]
[null,null,"Nombre de Participants",null,null,null,null,null,null,null,null,{"$f":"COUNT(L$6:L47)","v":37},0,{"$f":"COUNT(N$6:N47)","v":16},{"$f":"COUNT(O$6:O47)","v":16},{"$f":"COUNT(P$6:P47)","v":0},{"$f":"COUNT(Q$6:Q47)","v":0},{"$f":"COUNT(R$6:R47)","v":0},{"$f":"COUNT(S$6:S47)","v":0},{"$f":"COUNT(T$6:T47)","v":0},{"$f":"COUNT(U$6:U47)","v":0},{"$f":"COUNT(V$6:V47)","v":0},{"$f":"COUNT(W$6:W47)","v":0},{"$f":"COUNT(X$6:X47)","v":0},{"$f":"COUNT(Y$6:Y47)","v":0},{"$f":"COUNT(Z$6:Z47)","v":0},{"$f":"COUNT(AA$6:AA47)","v":0},{"$f":"COUNT(AB$6:AB47)","v":0},{"$f":"COUNT(AC$6:AC47)","v":0},{"$f":"COUNT(AD$6:AD47)","v":0},{"$f":"COUNT(AE$6:AE47)","v":0},{"$f":"COUNT(AF$6:AF47)","v":0},{"$f":"COUNT(AG$6:AG47)","v":0},{"$f":"COUNT(AH$6:AH47)","v":0},{"$f":"COUNT(AI$6:AI47)","v":0},{"$f":"COUNT(AJ$6:AJ47)","v":0},{"$f":"COUNT(AK$6:AK47)","v":0}]
[null,null,null,null,null,"Nb de manches comptabilisées :",{"$f":"Nbcourse","v":5},null,null,null,null,null,null,null,null,null,null,null,null,null,null,null,null,"Pour être classé, il faut avoir participé à au moins",{"$f":"classé/2","v":2},"courses"]

{"sheet":"Nat 160","index":4,"n_rows":37,"n_cols":53,"rows_kept":37,"cut":false,"hidden":false,"merged":[[2,23,2,24],[2,13,2,14],[2,9,4,9],[2,11,2,12],[2,15,2,16],[2,10,4,10],[2,17,2,18],[2,19,2,20],[2,21,2,22],[1,39,1,52],[2,25,2,26],[2,33,2,34],[2,35,2,36],[2,27,2,28],[2,29,2,30],[2,31,2,32]]}
["Sens Trophy 2014",null,null,null,null,null,null,"Nationale 160"]
[null,null,null,null,null,null,null,null,null,null,null,null,null,null,null,null,null,null,null,null,null,null,null,null,null,null,null,null,null,null,null,null,null,null,null,null,null,null,null,"Résultats supplémentaires"]
[null,"BFC",null,"Nom","Prénom",null,"ASK","Classé","Total","Nb Hors course","Points Bonus","2014-03-09",null,"2014-06-15",null,null,null,null,null,null,null,null,null,null,null,null,null,null,null,null,null,null,null,null,null,"2014-09-21",null,"Résultat max","Nb manches",1,2,3,4,5,6,7,8,9,10,11,12,13,14]
[null,null,null,null,null,null,null,null,null,null,null,"PF","F","PF","F","PF","F","PF","F","PF","F","PF","F","PF","F","PF","F","PF","F","PF","F","PF","F","PF","F","PF","F"]
[null,null,null,"Bonus Meilleur tour en course",null,null,null,null,null,null,null,"BOSTJANCIK Thomas",null,"STRINGARI Alexy"]
[1,null,null,"BOSTJANCIK Thomas",null,null,"Rosny",{"$f":"IF(COUNTA(AK6)>0,IF(COUNTA(L6:AK6)<classé,\"Non\",\"Oui\"),\"Non\")","v":"Non"},{"$f":"SUM(L6:AK6)-SUM(AN6:BA6)+K6","v":174},null,{"$f":"COUNTIF(L$5:AK$5,$D6)*4","v":4},40,50,40,40,null,null,null,null,null,null,null,null,null,null,null,null,null,null,null,null,null,null,null,null,null,null,{"$f":"MAX(L6:AK6)","v":50},{"$f":"COUNTA(L6:AK6)","v":4},{"$f":"IF($AM6>Nbcourse+AN$3-1-$J6,LARGE($L6:$AK6,Nbcourse+AN$3-$J6),0)","v":0},0,0,0,0,0,0,0,0,0,0,0,0,0]
[{"$f":"A6+1","v":2},null,null,"HERBLOT Vincent",null,null,"Bretigny","Non",154,null,0,50,40,32,32,null,null,null,null,null,null,null,null,null,null,null,null,null,null,null,null,null,null,null,null,null,null,50,4,0,0,0,0,0,0,0,0,0,0,0,0,0,0]
[3,null,null,"STRINGARI Alexy",null,null,"KCAM","Non",104,null,4,null,null,50,50,null,null,null,null,null,null,null,null,null,null,null,null,null,null,null,null,null,null,null,null,null,null,50,2,0,0,0,0,0,0,0,0,0,0,0,0,0,0]
[4,null,null,"AILLERIE Quentin",null,null,"Rosny","Non",64,null,0,32,32,null,null,null,null,null,null,null,null,null,null,null,null,null,null,null,null,null,null,null,null,null,null,null,null,32,2,0,0,0,0,0,0,0,0,0,0,0,0,0,0]
[{"$f":"A9+1","v":5},null,null,"BAILLET-GOIRAN Lucas",null,null,"Angerville","Non",52,null,0,null,null,26,26,null,null,null,null,null,null,null,null,null,null,null,null,null,null,null,null,null,null,null,null,null,null,26,2,0,0,0,0,0,0,0,0,0,0,0,0,0,0]
[6,null,null,null,null,null,null,"Non",0,null,0,null,null,null,null,null,null,null,null,null,null,null,null,null,null,null,null,null,null,null,null,null,null,null,null,null,null,0,0,0,0,0,0,0,0,0,0,0,0,0,0,0,0]
[7,null,null,null,null,null,null,"Non",0,null,0,null,null,null,null,null,null,null,null,null,null,null,null,null,null,null,null,null,null,null,null,null,null,null,null,null,null,0,0,0,0,0,0,0,0,0,0,0,0,0,0,0,0]
[8,null,null,null,null,null,null,"Non",0,null,0,null,null,null,null,null,null,null,null,null,null,null,null,null,null,null,null,null,null,null,null,null,null,null,null,null,null,0,0,0,0,0,0,0,0,0,0,0,0,0,0,0,0]
[9,null,null,null,null,null,null,"Non",0,null,0,null,null,null,null,null,null,null,null,null,null,null,null,null,null,null,null,null,null,null,null,null,null,null,null,null,null,0,0,0,0,0,0,0,0,0,0,0,0,0,0,0,0]
[10,null,null,null,null,null,null,"Non",0,null,0,null,null,null,null,null,null,null,null,null,null,null,null,null,null,null,null,null,null,null,null,null,null,null,null,null,null,0,0,0,0,0,0,0,0,0,0,0,0,0,0,0,0]
[11,null,null,null,null,null,null,"Non",0,null,0,null,null,null,null,null,null,null,null,null,null,null,null,null,null,null,null,null,null,null,null,null,null,null,null,null,null,0,0,{"$f":"IF($AM16>Nbcourse+AN$3-1-$J16,LARGE($L16:$AK16,Nbcourse+AN$3-$J16),0)","v":0},0,0,0,0,0,0,0,0,0,0,0,0,0]
[12,null,null,null,null,null,null,"Non",0,null,0,null,null,null,null,null,null,null,null,null,null,null,null,null,null,null,null,null,null,null,null,null,null,null,null,null,null,0,0,0,0,0,0,0,0,0,0,0,0,0,0,0,0]
[13,null,null,null,null,null,null,"Non",0,null,0,null,null,null,null,null,null,null,null,null,null,null,null,null,null,null,null,null,null,null,null,null,null,null,null,null,null,0,0,0,0,0,0,0,0,0,0,0,0,0,0,0,0]
[14,null,null,null,null,null,null,"Non",0,null,0,null,null,null,null,null,null,null,null,null,null,null,null,null,null,null,null,null,null,null,null,null,null,null,null,null,null,0,0,0,0,0,0,0,0,0,0,0,0,0,0,0,0]
[15,null,null,null,null,null,null,"Non",0,null,0,null,null,null,null,null,null,null,null,null,null,null,null,null,null,null,null,null,null,null,null,null,null,null,null,null,null,0,0,0,0,0,0,0,0,0,0,0,0,0,0,0,0]
[16,null,null,null,null,null,null,"Non",0,null,0,null,null,null,null,null,null,null,null,null,null,null,null,null,null,null,null,null,null,null,null,null,null,null,null,null,null,0,0,0,0,0,0,0,0,0,0,0,0,0,0,0,0]
[17,null,null,null,null,null,null,"Non",0,null,0,null,null,null,null,null,null,null,null,null,null,null,null,null,null,null,null,null,null,null,null,null,null,null,null,null,null,0,0,0,0,0,0,0,0,0,0,0,0,0,0,0,0]
[18,null,null,null,null,null,null,"Non",0,null,0,null,null,null,null,null,null,null,null,null,null,null,null,null,null,null,null,null,null,null,null,null,null,null,null,null,null,0,0,0,0,0,0,0,0,0,0,0,0,0,0,0,0]
[19,null,null,null,null,null,null,"Non",0,null,0,null,null,null,null,null,null,null,null,null,null,null,null,null,null,null,null,null,null,null,null,null,null,null,null,null,null,0,0,0,0,0,0,0,0,0,0,0,0,0,0,0,0]
[20,null,null,null,null,null,null,"Non",0,null,0,null,null,null,null,null,null,null,null,null,null,null,null,null,null,null,null,null,null,null,null,null,null,null,null,null,null,0,{"$f":"COUNTA(L25:AK25)","v":0},0,0,0,0,0,0,0,0,0,0,0,0,0,0]
[21,null,null,null,null,null,null,"Non",0,null,0,null,null,null,null,null,null,null,null,null,null,null,null,null,null,null,null,null,null,null,null,null,null,null,null,null,null,0,0,0,0,0,0,0,0,0,0,0,0,0,0,0,0]
[22,null,null,null,null,null,null,"Non",0,null,0,null,null,null,null,null,null,null,null,null,null,null,null,null,null,null,null,null,null,null,null,null,null,null,null,null,null,0,0,0,0,0,0,0,0,0,0,0,0,0,0,0,0]
[23,null,null,null,null,null,null,"Non",0,null,0,null,null,null,null,null,null,null,null,null,null,null,null,null,null,null,null,null,null,null,null,null,null,null,null,null,null,0,0,0,0,0,0,0,0,0,0,0,0,0,0,0,0]
[24,null,null,null,null,null,null,"Non",0,null,0,null,null,null,null,null,null,null,null,null,null,null,null,null,null,null,null,null,null,null,null,null,null,null,null,null,null,0,0,0,0,0,0,0,0,0,0,0,0,0,0,0,0]
[25,null,null,null,null,null,null,"Non",0,null,0,null,null,null,null,null,null,null,null,null,null,null,null,null,null,null,null,null,null,null,null,null,null,null,null,null,null,0,0,0,0,0,0,0,0,0,0,0,0,0,0,0,0]
[26,null,null,null,null,null,null,"Non",0,null,0,null,null,null,null,null,null,null,null,null,null,null,null,null,null,null,null,null,null,null,null,null,null,null,null,null,null,0,0,0,0,0,0,0,0,0,0,0,0,0,0,0,0]
[27,null,null,null,null,null,null,"Non",0,null,0,null,null,null,null,null,null,null,null,null,null,null,null,null,null,null,null,null,null,null,null,null,null,null,null,null,null,0,0,0,0,0,0,0,0,0,0,0,0,0,0,0,0]
[28,null,null,null,null,null,null,"Non",0,null,0,null,null,null,null,null,null,null,null,null,null,null,null,null,null,null,null,null,null,null,null,null,null,null,null,null,null,0,0,0,0,0,{"$f":"IF($AM33>Nbcourse+AQ$3-1-$J33,LARGE($L33:$AK33,Nbcourse+AQ$3-$J33),0)","v":0},0,0,0,0,0,0,0,0,0,0]
[29,null,null,null,null,null,null,"Non",0,null,0,null,null,null,null,null,null,null,null,null,null,null,null,null,null,null,null,null,null,null,null,null,null,null,null,null,null,0,0,{"$f":"IF($AM34>Nbcourse+AN$3-1-$J34,LARGE($L34:$AK34,Nbcourse+AN$3-$J34),0)","v":0},0,0,0,0,0,0,0,0,0,0,0,0,0]
[30,null,null,null,null,null,null,"Non",0,null,0,null,null,null,null,null,null,null,null,null,null,null,null,null,null,null,null,null,null,null,null,null,null,null,null,null,null,0,0,0,0,0,0,0,0,0,0,0,0,0,0,0,0]
[null,null,"Nombre de Participants",null,null,null,null,null,null,null,null,{"$f":"COUNT(L$6:L35)","v":3},{"$f":"COUNT(M$6:M35)","v":3},{"$f":"COUNT(N$6:N35)","v":4},{"$f":"COUNT(O$6:O35)","v":4},{"$f":"COUNT(P$6:P35)","v":0},{"$f":"COUNT(Q$6:Q35)","v":0},{"$f":"COUNT(R$6:R35)","v":0},{"$f":"COUNT(S$6:S35)","v":0},{"$f":"COUNT(T$6:T35)","v":0},{"$f":"COUNT(U$6:U35)","v":0},{"$f":"COUNT(V$6:V35)","v":0},{"$f":"COUNT(W$6:W35)","v":0},{"$f":"COUNT(X$6:X35)","v":0},{"$f":"COUNT(Y$6:Y35)","v":0},{"$f":"COUNT(Z$6:Z35)","v":0},{"$f":"COUNT(AA$6:AA35)","v":0},{"$f":"COUNT(AB$6:AB35)","v":0},{"$f":"COUNT(AC$6:AC35)","v":0},{"$f":"COUNT(AD$6:AD35)","v":0},{"$f":"COUNT(AE$6:AE35)","v":0},{"$f":"COUNT(AF$6:AF35)","v":0},{"$f":"COUNT(AG$6:AG35)","v":0},{"$f":"COUNT(AH$6:AH35)","v":0},{"$f":"COUNT(AI$6:AI35)","v":0},{"$f":"COUNT(AJ$6:AJ35)","v":0},{"$f":"COUNT(AK$6:AK35)","v":0}]
[null,null,null,null,null,"Nb de manches comptabilisées :",{"$f":"Nbcourse","v":5},null,null,null,null,null,null,null,null,null,null,null,null,null,null,null,null,"Pour être classé, il faut avoir participé à au moins",{"$f":"classé/2","v":2},"courses"]

{"sheet":"Max","index":5,"n_rows":37,"n_cols":53,"rows_kept":37,"cut":false,"hidden":false,"merged":[[1,39,1,52],[2,25,2,26],[2,33,2,34],[2,35,2,36],[2,27,2,28],[2,29,2,30],[2,31,2,32],[2,23,2,24],[2,13,2,14],[2,9,4,9],[2,11,2,12],[2,15,2,16],[2,10,4,10],[2,17,2,18],[2,19,2,20],[2,21,2,22]]}
["Sens Trophy 2014",null,null,null,null,null,null,null,null,null,null,"Rotax Max"]
[null,null,null,null,null,null,null,null,null,null,null,null,null,null,null,null,null,null,null,null,null,null,null,null,null,null,null,null,null,null,null,null,null,null,null,null,null,null,null,"Résultats supplémentaires"]
[null,"BFC",null,"Nom","Prénom",null,"ASK","Classé","Total","Nb Hors course","Points Bonus","2014-03-09",null,"2014-06-15",null,null,null,null,null,null,null,null,null,null,null,null,null,null,null,null,null,null,null,null,null,"2014-09-21",null,"Résultat max","Nb manches",1,2,3,4,5,6,7,8,9,10,11,12,13,14]
[null,null,null,null,null,null,null,null,null,null,null,"PF","F","PF","F","PF","F","PF","F",null,null,null,null,null,null,null,null,null,null,null,null,null,null,null,null,"PF","F"]
[null,null,null,"Bonus Meilleur tour en course",null,null,null,null,null,null,null,"HODIER Thomas",null,"BARBAZA Mariane"]
[1,null,null,"HODIER Thomas",null,null,"Rosny",{"$f":"IF(COUNTA(AK6)>0,IF(COUNTA(L6:AK6)<classé,\"Non\",\"Oui\"),\"Non\")","v":"Non"},{"$f":"SUM(L6:AK6)-SUM(AN6:BA6)+K6","v":104},null,{"$f":"COUNTIF(L$5:AK$5,$D6)*4","v":4},50,50,null,null,null,null,null,null,null,null,null,null,null,null,null,null,null,null,null,null,null,null,null,null,null,null,{"$f":"MAX(L6:AK6)","v":50},{"$f":"COUNTA(L6:AK6)","v":2},{"$f":"IF($AM6>Nbcourse+AN$3-1-$J6,LARGE($L6:$AK6,Nbcourse+AN$3-$J6),0)","v":0},0,0,0,0,0,0,0,0,0,0,0,0,0]
[{"$f":"A6+1","v":2},null,null,"BARBAZA Mariane",null,null,"Angerville","Non",104,null,4,null,null,50,50,null,null,null,null,null,null,null,null,null,null,null,null,null,null,null,null,null,null,null,null,null,null,50,2,0,0,0,0,0,0,0,0,0,0,0,0,0,0]
[3,null,null,"VAISON Mathias",null,null,"Sens","Non",80,null,0,40,40,null,null,null,null,null,null,null,null,null,null,null,null,null,null,null,null,null,null,null,null,null,null,null,null,40,2,0,0,0,0,0,0,0,0,0,0,0,0,0,0]
[4,null,null,"LOUVEAU Paul",null,null,"JBH","Non",64,null,0,32,32,null,null,null,null,null,null,null,null,null,null,null,null,null,null,null,null,null,null,null,null,null,null,null,null,32,2,0,0,0,0,0,0,0,0,0,0,0,0,0,0]
[5,null,null,"FAUVEAU Christophe",null,null,"Sens","Non",46,null,0,20,26,null,null,null,null,null,null,null,null,null,null,null,null,null,null,null,null,null,null,null,null,null,null,null,null,26,2,0,0,0,0,0,0,0,0,0,0,0,0,0,0]
[6,null,null,"TROUTTET Victor",null,null,"Enclos","Non",46,null,0,26,20,null,null,null,null,null,null,null,null,null,null,null,null,null,null,null,null,null,null,null,null,null,null,null,null,26,2,0,0,0,0,0,0,0,0,0,0,0,0,0,0]
[7,null,null,"VIALLE Valentin",null,null,"Sens","Non",44,null,0,22,22,null,null,null,null,null,null,null,null,null,null,null,null,null,null,null,null,null,null,null,null,null,null,null,null,22,2,0,0,0,0,0,0,0,0,0,0,0,0,0,0]
[8,null,null,null,null,null,null,"Non",0,null,0,null,null,null,null,null,null,null,null,null,null,null,null,null,null,null,null,null,null,null,null,null,null,null,null,null,null,0,0,0,0,0,0,0,0,0,0,0,0,0,0,0,0]
[9,null,null,null,null,null,null,"Non",0,null,0,null,null,null,null,null,null,null,null,null,null,null,null,null,null,null,null,null,null,null,null,null,null,null,null,null,null,0,0,0,0,0,0,0,0,0,0,0,0,0,0,0,0]
[10,null,null,null,null,null,null,"Non",0,null,0,null,null,null,null,null,null,null,null,null,null,null,null,null,null,null,null,null,null,null,null,null,null,null,null,null,null,0,0,0,0,0,0,0,0,0,0,0,0,0,0,0,0]
[11,null,null,null,null,null,null,"Non",0,null,0,null,null,null,null,null,null,null,null,null,null,null,null,null,null,null,null,null,null,null,null,null,null,null,null,null,null,0,0,{"$f":"IF($AM16>Nbcourse+AN$3-1-$J16,LARGE($L16:$AK16,Nbcourse+AN$3-$J16),0)","v":0},0,0,0,0,0,0,0,0,0,0,0,0,0]
[12,null,null,null,null,null,null,"Non",0,null,0,null,null,null,null,null,null,null,null,null,null,null,null,null,null,null,null,null,null,null,null,null,null,null,null,null,null,0,0,0,0,0,0,0,0,0,0,0,0,0,0,0,0]
[13,null,null,null,null,null,null,"Non",0,null,0,null,null,null,null,null,null,null,null,null,null,null,null,null,null,null,null,null,null,null,null,null,null,null,null,null,null,0,0,0,0,0,0,0,0,0,0,0,0,0,0,0,0]
[{"$f":"A18+1","v":14},null,null,null,null,null,null,"Non",0,null,0,null,null,null,null,null,null,null,null,null,null,null,null,null,null,null,null,null,null,null,null,null,null,null,null,null,null,0,0,0,0,0,0,0,0,0,0,0,0,0,0,0,0]
[15,null,null,null,null,null,null,"Non",0,null,0,null,null,null,null,null,null,null,null,null,null,null,null,null,null,null,null,null,null,null,null,null,null,null,null,null,null,0,0,0,0,0,0,0,0,0,0,0,0,0,0,0,0]
[16,null,null,null,null,null,null,"Non",0,null,0,null,null,null,null,null,null,null,null,null,null,null,null,null,null,null,null,null,null,null,null,null,null,null,null,null,null,0,0,0,0,0,0,0,0,0,0,0,0,0,0,0,0]
[17,null,null,null,null,null,null,"Non",0,null,0,null,null,null,null,null,null,null,null,null,null,null,null,null,null,null,null,null,null,null,null,null,null,null,null,null,null,0,0,0,0,0,0,0,0,0,0,0,0,0,0,0,0]
[18,null,null,null,null,null,null,"Non",0,null,0,null,null,null,null,null,null,null,null,null,null,null,null,null,null,null,null,null,null,null,null,null,null,null,null,null,null,0,0,0,0,0,0,0,0,0,0,0,0,0,0,0,0]
[19,null,null,null,null,null,null,"Non",0,null,0,null,null,null,null,null,null,null,null,null,null,null,null,null,null,null,null,null,null,null,null,null,null,null,null,null,null,0,0,0,0,0,0,0,0,0,0,0,0,0,0,0,0]
[20,null,null,null,null,null,null,"Non",0,null,0,null,null,null,null,null,null,null,null,null,null,null,null,null,null,null,null,null,null,null,null,null,null,null,null,null,null,0,0,0,0,0,0,0,0,0,0,0,0,0,0,0,0]
[21,null,null,null,null,null,null,"Non",0,null,0,null,null,null,null,null,null,null,null,null,null,null,null,null,null,null,null,null,null,null,null,null,null,null,null,null,null,0,0,{"$f":"IF($AM26>Nbcourse+AN$3-1-$J26,LARGE($L26:$AK26,Nbcourse+AN$3-$J26),0)","v":0},0,0,0,0,0,0,0,0,0,0,0,0,0]
[22,null,null,null,null,null,null,"Non",0,null,0,null,null,null,null,null,null,null,null,null,null,null,null,null,null,null,null,null,null,null,null,null,null,null,null,null,null,0,0,0,0,0,0,0,0,0,0,0,0,0,0,0,0]
[23,null,null,null,null,null,null,"Non",0,null,0,null,null,null,null,null,null,null,null,null,null,null,null,null,null,null,null,null,null,null,null,null,null,null,null,null,null,0,{"$f":"COUNTA(L28:AK28)","v":0},0,0,0,0,0,0,0,0,0,0,0,0,0,0]
[24,null,null,null,null,null,null,"Non",0,null,0,null,null,null,null,null,null,null,null,null,null,null,null,null,null,null,null,null,null,null,null,null,null,null,null,null,null,0,0,0,0,0,0,0,0,0,0,0,0,0,0,0,0]
[25,null,null,null,null,null,null,"Non",0,null,0,null,null,null,null,null,null,null,null,null,null,null,null,null,null,null,null,null,null,null,null,null,null,null,null,null,null,0,0,0,0,0,0,0,0,0,0,0,0,0,0,0,0]
[26,null,null,null,null,null,null,"Non",0,null,0,null,null,null,null,null,null,null,null,null,null,null,null,null,null,null,null,null,null,null,null,null,null,null,null,null,null,0,0,0,0,0,0,0,0,0,0,0,0,0,0,0,0]
[27,null,null,null,null,null,null,"Non",0,null,0,null,null,null,null,null,null,null,null,null,null,null,null,null,null,null,null,null,null,null,null,null,null,null,null,null,null,0,0,0,0,0,0,0,0,0,0,0,0,0,0,0,0]
[28,null,null,null,null,null,null,"Non",0,null,0,null,null,null,null,null,null,null,null,null,null,null,null,null,null,null,null,null,null,null,null,null,null,null,null,null,null,0,0,{"$f":"IF($AM33>Nbcourse+AN$3-1-$J33,LARGE($L33:$AK33,Nbcourse+AN$3-$J33),0)","v":0},{"$f":"IF($AM33>Nbcourse+AO$3-1-$J33,LARGE($L33:$AK33,Nbcourse+AO$3-$J33),0)","v":0},{"$f":"IF($AM33>Nbcourse+AP$3-1-$J33,LARGE($L33:$AK33,Nbcourse+AP$3-$J33),0)","v":0},{"$f":"IF($AM33>Nbcourse+AQ$3-1-$J33,LARGE($L33:$AK33,Nbcourse+AQ$3-$J33),0)","v":0},0,0,0,0,0,0,0,0,0,0]
[29,null,null,null,null,null,null,"Non",0,null,0,null,null,null,null,null,null,null,null,null,null,null,null,null,null,null,null,null,null,null,null,null,null,null,null,null,null,0,0,{"$f":"IF($AM34>Nbcourse+AN$3-1-$J34,LARGE($L34:$AK34,Nbcourse+AN$3-$J34),0)","v":0},0,0,0,0,0,0,0,0,0,0,0,0,0]
[30,null,null,null,null,null,null,"Non",0,null,0,null,null,null,null,null,null,null,null,null,null,null,null,null,null,null,null,null,null,null,null,null,null,null,null,null,null,0,0,0,0,0,0,0,0,0,0,0,0,0,0,0,0]
[null,null,"Nombre de Participants",null,null,null,null,null,null,null,null,{"$f":"COUNT(L$6:L35)","v":6},{"$f":"COUNT(M$6:M35)","v":6},{"$f":"COUNT(N$6:N35)","v":1},{"$f":"COUNT(O$6:O35)","v":1},{"$f":"COUNT(P$6:P35)","v":0},{"$f":"COUNT(Q$6:Q35)","v":0},{"$f":"COUNT(R$6:R35)","v":0},{"$f":"COUNT(S$6:S35)","v":0},null,null,null,null,null,null,null,null,null,null,null,null,null,null,null,null,{"$f":"COUNT(AJ$6:AJ35)","v":0},{"$f":"COUNT(AK$6:AK35)","v":0}]
[null,null,null,null,null,"Nb de manches comptabilisées :",{"$f":"Nbcourse","v":5},null,null,null,null,null,null,null,null,null,null,null,null,null,null,null,null,"Pour être classé, il faut avoir participé à au moins",{"$f":"classé/2","v":2},"courses"]

{"sheet":"Max M","index":6,"n_rows":37,"n_cols":53,"rows_kept":37,"cut":false,"hidden":false,"merged":[[2,23,2,24],[2,13,2,14],[2,9,4,9],[2,11,2,12],[2,15,2,16],[2,10,4,10],[2,17,2,18],[2,19,2,20],[2,21,2,22],[1,39,1,52],[2,25,2,26],[2,33,2,34],[2,35,2,36],[2,27,2,28],[2,29,2,30],[2,31,2,32]]}
["Sens Trophy 2014",null,null,null,null,null,null,"Rotax Max Master"]
[null,null,null,null,null,null,null,null,null,null,null,null,null,null,null,null,null,null,null,null,null,null,null,null,null,null,null,null,null,null,null,null,null,null,null,null,null,null,null,"Résultats supplémentaires"]
[null,"BFC",null,"Nom","Prénom",null,"ASK","Classé","Total","Nb Hors course","Points Bonus","2014-03-09",null,"2014-06-15",null,"Moirans",null,"Le Creusot",null,null,null,null,null,null,null,null,null,null,null,null,null,null,null,null,null,"2014-09-21",null,"Résultat max","Nb manches",1,2,3,4,5,6,7,8,9,10,11,12,13,14]
[null,null,null,null,null,null,null,null,null,null,null,"PF","F","PF","F","PF","F","PF","F","PF","F","PF","F","PF","F","PF","F","PF","F","PF","F","PF","F","PF","F","PF","F"]
[null,null,null,"Bonus Meilleur tour en course",null,null,null,null,null,null,null,"HERVAS Didier",null,"SABUCO Michel"]
[1,null,null,"SABUCO Michel",null,null,"Sens",{"$f":"IF(COUNTA(AK6)>0,IF(COUNTA(L6:AK6)<classé,\"Non\",\"Oui\"),\"Non\")","v":"Non"},{"$f":"SUM(L6:AK6)-SUM(AN6:BA6)+K6","v":184},null,{"$f":"COUNTIF(L$5:AK$5,$D6)*4","v":4},40,40,50,50,null,null,null,null,null,null,null,null,null,null,null,null,null,null,null,null,null,null,null,null,null,null,{"$f":"MAX(L6:AK6)","v":50},{"$f":"COUNTA(L6:AK6)","v":4},{"$f":"IF($AM6>Nbcourse+AN$3-1-$J6,LARGE($L6:$AK6,Nbcourse+AN$3-$J6),0)","v":0},0,0,0,0,0,0,0,0,0,0,0,0,0]
[{"$f":"A6+1","v":2},null,null,"HERVAS Didier",null,null,"Sens","Non",104,null,4,50,50,null,null,null,null,null,null,null,null,null,null,null,null,null,null,null,null,null,null,null,null,null,null,null,null,50,2,0,0,0,0,0,0,0,0,0,0,0,0,0,0]
[3,null,null,"FRANCE Nicolas",null,null,"Pays Dunois","Non",64,null,0,32,32,null,null,null,null,null,null,null,null,null,null,null,null,null,null,null,null,null,null,null,null,null,null,null,null,32,2,0,0,0,0,0,0,0,0,0,0,0,0,0,0]
[4,null,null,null,null,null,null,"Non",0,null,0,null,null,null,null,null,null,null,null,null,null,null,null,null,null,null,null,null,null,null,null,null,null,null,null,null,null,0,0,0,0,0,0,0,0,0,0,0,0,0,0,0,0]
[5,null,null,null,null,null,null,"Non",0,null,0,null,null,null,null,null,null,null,null,null,null,null,null,null,null,null,null,null,null,null,null,null,null,null,null,null,null,0,0,0,0,0,0,0,0,0,0,0,0,0,0,0,0]
[6,null,null,null,null,null,null,"Non",0,null,0,null,null,null,null,null,null,null,null,null,null,null,null,null,null,null,null,null,null,null,null,null,null,null,null,null,null,0,0,0,0,0,0,0,0,0,0,0,0,0,0,0,0]
[7,null,null,null,null,null,null,"Non",0,null,0,null,null,null,null,null,null,null,null,null,null,null,null,null,null,null,null,null,null,null,null,null,null,null,null,null,null,0,0,0,0,0,0,0,0,0,0,0,0,0,0,0,0]
[8,null,null,null,null,null,null,"Non",0,null,0,null,null,null,null,null,null,null,null,null,null,null,null,null,null,null,null,null,null,null,null,null,null,null,null,null,null,0,0,0,0,0,0,0,0,0,0,0,0,0,0,0,0]
[9,null,null,null,null,null,null,"Non",0,null,0,null,null,null,null,null,null,null,null,null,null,null,null,null,null,null,null,null,null,null,null,null,null,null,null,null,null,0,0,0,0,0,0,0,0,0,0,0,0,0,0,0,0]
[10,null,null,null,null,null,null,"Non",0,null,0,null,null,null,null,null,null,null,null,null,null,null,null,null,null,null,null,null,null,null,null,null,null,null,null,null,null,0,0,0,0,0,0,0,0,0,0,0,0,0,0,0,0]
[11,null,null,null,null,null,null,"Non",0,null,0,null,null,null,null,null,null,null,null,null,null,null,null,null,null,null,null,null,null,null,null,null,null,null,null,null,null,0,0,{"$f":"IF($AM16>Nbcourse+AN$3-1-$J16,LARGE($L16:$AK16,Nbcourse+AN$3-$J16),0)","v":0},0,0,0,0,0,0,0,0,0,0,0,0,0]
[12,null,null,null,null,null,null,"Non",0,null,0,null,null,null,null,null,null,null,null,null,null,null,null,null,null,null,null,null,null,null,null,null,null,null,null,null,null,0,0,0,0,0,0,0,0,0,0,0,0,0,0,0,0]
[13,null,null,null,null,null,null,"Non",0,null,0,null,null,null,null,null,null,null,null,null,null,null,null,null,null,null,null,null,null,null,null,null,null,null,null,null,null,0,0,0,0,0,0,0,0,0,0,0,0,0,0,0,0]
[14,null,null,null,null,null,null,"Non",0,null,0,null,null,null,null,null,null,null,null,null,null,null,null,null,null,null,null,null,null,null,null,null,null,null,null,null,null,0,0,0,0,0,0,0,0,0,0,0,0,0,0,0,0]
[15,null,null,null,null,null,null,"Non",0,null,0,null,null,null,null,null,null,null,null,null,null,null,null,null,null,null,null,null,null,null,null,null,null,null,null,null,null,0,0,0,0,0,0,0,0,0,0,0,0,0,0,0,0]
[16,null,null,null,null,null,null,"Non",0,null,0,null,null,null,null,null,null,null,null,null,null,null,null,null,null,null,null,null,null,null,null,null,null,null,null,null,null,0,0,0,0,0,0,0,0,0,0,0,0,0,0,0,0]
[17,null,null,null,null,null,null,"Non",0,null,0,null,null,null,null,null,null,null,null,null,null,null,null,null,null,null,null,null,null,null,null,null,null,null,null,null,null,0,0,0,0,0,0,0,0,0,0,0,0,0,0,0,0]
[18,null,null,null,null,null,null,"Non",0,null,0,null,null,null,null,null,null,null,null,null,null,null,null,null,null,null,null,null,null,null,null,null,null,null,null,null,null,0,0,0,0,0,0,0,0,0,0,0,0,0,0,0,0]
[19,null,null,null,null,null,null,"Non",0,null,0,null,null,null,null,null,null,null,null,null,null,null,null,null,null,null,null,null,null,null,null,null,null,null,null,null,null,0,0,0,0,0,0,0,0,0,0,0,0,0,0,0,0]
[20,null,null,null,null,null,null,"Non",0,null,0,null,null,null,null,null,null,null,null,null,null,null,null,null,null,null,null,null,null,null,null,null,null,null,null,null,null,0,{"$f":"COUNTA(L25:AK25)","v":0},0,0,0,0,0,0,0,0,0,0,0,0,0,0]
[21,null,null,null,null,null,null,"Non",0,null,0,null,null,null,null,null,null,null,null,null,null,null,null,null,null,null,null,null,null,null,null,null,null,null,null,null,null,0,0,0,0,0,0,0,0,0,0,0,0,0,0,0,0]
[22,null,null,null,null,null,null,"Non",0,null,0,null,null,null,null,null,null,null,null,null,null,null,null,null,null,null,null,null,null,null,null,null,null,null,null,null,null,0,0,0,0,0,0,0,0,0,0,0,0,0,0,0,0]
[23,null,null,null,null,null,null,"Non",0,null,0,null,null,null,null,null,null,null,null,null,null,null,null,null,null,null,null,null,null,null,null,null,null,null,null,null,null,0,0,0,0,0,0,0,0,0,0,0,0,0,0,0,0]
[24,null,null,null,null,null,null,"Non",0,null,0,null,null,null,null,null,null,null,null,null,null,null,null,null,null,null,null,null,null,null,null,null,null,null,null,null,null,0,0,0,0,0,0,0,0,0,0,0,0,0,0,0,0]
[25,null,null,null,null,null,null,"Non",0,null,0,null,null,null,null,null,null,null,null,null,null,null,null,null,null,null,null,null,null,null,null,null,null,null,null,null,null,0,0,0,0,0,0,0,0,0,0,0,0,0,0,0,0]
[26,null,null,null,null,null,null,"Non",0,null,0,null,null,null,null,null,null,null,null,null,null,null,null,null,null,null,null,null,null,null,null,null,null,null,null,null,null,0,0,0,0,0,0,0,0,0,0,0,0,0,0,0,0]
[27,null,null,null,null,null,null,"Non",0,null,0,null,null,null,null,null,null,null,null,null,null,null,null,null,null,null,null,null,null,null,null,null,null,null,null,null,null,0,0,0,0,0,0,0,0,0,0,0,0,0,0,0,0]
[28,null,null,null,null,null,null,"Non",0,null,0,null,null,null,null,null,null,null,null,null,null,null,null,null,null,null,null,null,null,null,null,null,null,null,null,null,null,0,0,0,0,0,{"$f":"IF($AM33>Nbcourse+AQ$3-1-$J33,LARGE($L33:$AK33,Nbcourse+AQ$3-$J33),0)","v":0},0,0,0,0,0,0,0,0,0,0]
[29,null,null,null,null,null,null,"Non",0,null,0,null,null,null,null,null,null,null,null,null,null,null,null,null,null,null,null,null,null,null,null,null,null,null,null,null,null,0,0,{"$f":"IF($AM34>Nbcourse+AN$3-1-$J34,LARGE($L34:$AK34,Nbcourse+AN$3-$J34),0)","v":0},0,0,0,0,0,0,0,0,0,0,0,0,0]
[30,null,null,null,null,null,null,"Non",0,null,0,null,null,null,null,null,null,null,null,null,null,null,null,null,null,null,null,null,null,null,null,null,null,null,null,null,null,0,0,0,0,0,0,0,0,0,0,0,0,0,0,0,0]
[null,null,"Nombre de Participants",null,null,null,null,null,null,null,null,{"$f":"COUNT(L$6:L35)","v":3},{"$f":"COUNT(M$6:M35)","v":3},{"$f":"COUNT(N$6:N35)","v":1},{"$f":"COUNT(O$6:O35)","v":1},{"$f":"COUNT(P$6:P35)","v":0},{"$f":"COUNT(Q$6:Q35)","v":0},{"$f":"COUNT(R$6:R35)","v":0},{"$f":"COUNT(S$6:S35)","v":0},{"$f":"COUNT(T$6:T35)","v":0},{"$f":"COUNT(U$6:U35)","v":0},{"$f":"COUNT(V$6:V35)","v":0},{"$f":"COUNT(W$6:W35)","v":0},{"$f":"COUNT(X$6:X35)","v":0},{"$f":"COUNT(Y$6:Y35)","v":0},{"$f":"COUNT(Z$6:Z35)","v":0},{"$f":"COUNT(AA$6:AA35)","v":0},{"$f":"COUNT(AB$6:AB35)","v":0},{"$f":"COUNT(AC$6:AC35)","v":0},{"$f":"COUNT(AD$6:AD35)","v":0},{"$f":"COUNT(AE$6:AE35)","v":0},{"$f":"COUNT(AF$6:AF35)","v":0},{"$f":"COUNT(AG$6:AG35)","v":0},{"$f":"COUNT(AH$6:AH35)","v":0},{"$f":"COUNT(AI$6:AI35)","v":0},{"$f":"COUNT(AJ$6:AJ35)","v":0},{"$f":"COUNT(AK$6:AK35)","v":0}]
[null,null,null,null,null,"Nb de manches comptabilisées :",{"$f":"Nbcourse","v":5},null,null,null,null,null,null,null,null,null,null,null,null,null,null,null,null,"Pour être classé, il faut avoir participé à au moins",{"$f":"classé/2","v":2},"courses"]

{"sheet":"X 30","index":7,"n_rows":37,"n_cols":55,"rows_kept":37,"cut":false,"hidden":false,"merged":[[1,39,1,52],[2,25,2,26],[2,33,2,34],[2,35,2,36],[2,27,2,28],[2,29,2,30],[2,31,2,32],[2,23,2,24],[2,13,2,14],[2,9,4,9],[2,11,2,12],[2,15,2,16],[2,10,4,10],[2,17,2,18],[2,19,2,20],[2,21,2,22]]}
["Sens Trophy 2014",null,null,null,null,null,null,null,null,null,null,"X 30"]
[null,null,null,null,null,null,null,null,null,null,null,null,null,null,null,null,null,null,null,null,null,null,null,null,null,null,null,null,null,null,null,null,null,null,null,null,null,null,null,"Résultats supplémentaires"]
[null,"BFC",null,"Nom","Prénom",null,"ASK","Classé","Total","Nb Hors course","Points Bonus","2014-03-09",null,"2014-06-15",null,null,null,null,null,null,null,null,null,null,null,null,null,null,null,null,null,null,null,null,null,"2014-09-21",null,"Résultat max","Nb manches",1,2,3,4,5,6,7,8,9,10,11,12,13,14]
[null,null,null,null,null,null,null,null,null,null,null,"PF","F","PF","F","PF","F","PF","F","PF","F","PF","F","PF","F","PF","F","PF","F","PF","F","PF","F","PF","F","PF","F"]
[null,null,null,"Bonus Meilleur tour en course",null,null,null,null,null,null,null,"BARRET Thibault"]
[1,null,null,"BARRET Thibault",null,null,"Rosny",{"$f":"IF(COUNTA(AK6)>0,IF(COUNTA(L6:AK6)<classé,\"Non\",\"Oui\"),\"Non\")","v":"Non"},{"$f":"SUM(L6:AK6)-SUM(AN6:BA6)+K6","v":104},null,{"$f":"COUNTIF(L$5:AK$5,$D6)*4","v":4},50,50,null,null,null,null,null,null,null,null,null,null,null,null,null,null,null,null,null,null,null,null,null,null,null,null,{"$f":"MAX(L6:AK6)","v":50},{"$f":"COUNTA(L6:AK6)","v":2},{"$f":"IF($AM6>Nbcourse+AN$3-1-$J6,LARGE($L6:$AK6,Nbcourse+AN$3-$J6),0)","v":0},0,0,0,0,0,0,0,0,0,0,0,0,0,null,{"$f":"#REF!","v":{"$error":"#REF!"}}]
[{"$f":"A6+1","v":2},null,null,null,null,null,null,"Non",0,null,0,null,null,null,null,null,null,null,null,null,null,null,null,null,null,null,null,null,null,null,null,null,null,null,null,null,null,0,0,0,0,0,0,0,0,0,0,0,0,0,0,0,0,null,{"$f":"#REF!","v":{"$error":"#REF!"}}]
[3,null,null,null,null,null,null,"Non",0,null,0,null,null,null,null,null,null,null,null,null,null,null,null,null,null,null,null,null,null,null,null,null,null,null,null,null,null,0,0,0,0,0,0,0,0,0,0,0,0,0,0,0,0,null,{"$f":"#REF!","v":{"$error":"#REF!"}}]
[4,null,null,null,null,null,null,"Non",0,null,0,null,null,null,null,null,null,null,null,null,null,null,null,null,null,null,null,null,null,null,null,null,null,null,null,null,null,0,0,0,0,0,0,0,0,0,0,0,0,0,0,0,0,null,{"$f":"#REF!","v":{"$error":"#REF!"}}]
[5,null,null,null,null,null,null,"Non",0,null,0,null,null,null,null,null,null,null,null,null,null,null,null,null,null,null,null,null,null,null,null,null,null,null,null,null,null,0,0,0,0,0,0,0,0,0,0,0,0,0,0,0,0,null,{"$f":"#REF!","v":{"$error":"#REF!"}}]
[{"$f":"A10+1","v":6},null,null,null,null,null,null,"Non",0,null,0,null,null,null,null,null,null,null,null,null,null,null,null,null,null,null,null,null,null,null,null,null,null,null,null,null,null,0,0,0,0,0,0,0,0,0,0,0,0,0,0,0,0,null,{"$f":"#REF!","v":{"$error":"#REF!"}}]
[7,null,null,null,null,null,null,"Non",0,null,0,null,null,null,null,null,null,null,null,null,null,null,null,null,null,null,null,null,null,null,null,null,null,null,null,null,null,0,0,0,0,0,0,0,0,0,0,0,0,0,0,0,0,null,{"$f":"#REF!","v":{"$error":"#REF!"}}]
[8,null,null,null,null,null,null,"Non",0,null,0,null,null,null,null,null,null,null,null,null,null,null,null,null,null,null,null,null,null,null,null,null,null,null,null,null,null,0,0,0,0,0,0,0,0,0,0,0,0,0,0,0,0,null,{"$f":"#REF!","v":{"$error":"#REF!"}}]
[9,null,null,null,null,null,null,"Non",0,null,0,null,null,null,null,null,null,null,null,null,null,null,null,null,null,null,null,null,null,null,null,null,null,null,null,null,null,0,0,0,0,0,0,0,0,0,0,0,0,0,0,0,0,null,{"$f":"#REF!","v":{"$error":"#REF!"}}]
[10,null,null,null,null,null,null,"Non",0,null,0,null,null,null,null,null,null,null,null,null,null,null,null,null,null,null,null,null,null,null,null,null,null,null,null,null,null,0,0,0,0,0,0,0,0,0,0,0,0,0,0,0,0,null,{"$f":"#REF!","v":{"$error":"#REF!"}}]
[11,null,null,null,null,null,null,"Non",0,null,0,null,null,null,null,null,null,null,null,null,null,null,null,null,null,null,null,null,null,null,null,null,null,null,null,null,null,0,0,{"$f":"IF($AM16>Nbcourse+AN$3-1-$J16,LARGE($L16:$AK16,Nbcourse+AN$3-$J16),0)","v":0},0,0,0,0,0,0,0,0,0,0,0,0,0,null,{"$f":"#REF!","v":{"$error":"#REF!"}}]
[12,null,null,null,null,null,null,"Non",0,null,0,null,null,null,null,null,null,null,null,null,null,null,null,null,null,null,null,null,null,null,null,null,null,null,null,null,null,0,0,0,0,0,0,0,0,0,0,0,0,0,0,0,0,null,{"$f":"#REF!","v":{"$error":"#REF!"}}]
[13,null,null,null,null,null,null,"Non",0,null,0,null,null,null,null,null,null,null,null,null,null,null,null,null,null,null,null,null,null,null,null,null,null,null,null,null,null,0,0,0,0,0,0,0,0,0,0,0,0,0,0,0,0,null,{"$f":"#REF!","v":{"$error":"#REF!"}}]
[14,null,null,null,null,null,null,"Non",0,null,0,null,null,null,null,null,null,null,null,null,null,null,null,null,null,null,null,null,null,null,null,null,null,null,null,null,null,0,0,0,0,0,0,0,0,0,0,0,0,0,0,0,0,null,{"$f":"#REF!","v":{"$error":"#REF!"}}]
[15,null,null,null,null,null,null,"Non",0,null,0,null,null,null,null,null,null,null,null,null,null,null,null,null,null,null,null,null,null,null,null,null,null,null,null,null,null,0,0,0,0,0,0,0,0,0,0,0,0,0,0,0,0,null,{"$f":"#REF!","v":{"$error":"#REF!"}}]
[16,null,null,null,null,null,null,"Non",0,null,0,null,null,null,null,null,null,null,null,null,null,null,null,null,null,null,null,null,null,null,null,null,null,null,null,null,null,0,0,0,0,0,0,0,0,0,0,0,0,0,0,0,0]
[17,null,null,null,null,null,null,"Non",0,null,0,null,null,null,null,null,null,null,null,null,null,null,null,null,null,null,null,null,null,null,null,null,null,null,null,null,null,0,0,0,0,0,0,0,0,0,0,0,0,0,0,0,0]
[18,null,null,null,null,null,null,"Non",0,null,0,null,null,null,null,null,null,null,null,null,null,null,null,null,null,null,null,null,null,null,null,null,null,null,null,null,null,0,0,0,0,0,0,0,0,0,0,0,0,0,0,0,0]
[19,null,null,null,null,null,null,"Non",0,null,0,null,null,null,null,null,null,null,null,null,null,null,null,null,null,null,null,null,null,null,null,null,null,null,null,null,null,0,0,0,0,0,0,0,0,0,0,0,0,0,0,0,0]
[20,null,null,null,null,null,null,"Non",0,null,0,null,null,null,null,null,null,null,null,null,null,null,null,null,null,null,null,null,null,null,null,null,null,null,null,null,null,0,{"$f":"COUNTA(L25:AK25)","v":0},0,0,0,0,0,0,0,0,0,0,0,0,0,0]
[21,null,null,null,null,null,null,"Non",0,null,0,null,null,null,null,null,null,null,null,null,null,null,null,null,null,null,null,null,null,null,null,null,null,null,null,null,null,0,0,0,0,0,0,0,0,0,0,0,0,0,0,0,0]
[22,null,null,null,null,null,null,"Non",0,null,0,null,null,null,null,null,null,null,null,null,null,null,null,null,null,null,null,null,null,null,null,null,null,null,null,null,null,0,0,0,0,0,0,0,0,0,0,0,0,0,0,0,0]
[23,null,null,null,null,null,null,"Non",0,null,0,null,null,null,null,null,null,null,null,null,null,null,null,null,null,null,null,null,null,null,null,null,null,null,null,null,null,0,0,0,0,0,0,0,0,0,0,0,0,0,0,0,0]
[24,null,null,null,null,null,null,"Non",0,null,0,null,null,null,null,null,null,null,null,null,null,null,null,null,null,null,null,null,null,null,null,null,null,null,null,null,null,0,0,0,0,0,0,0,0,0,0,0,0,0,0,0,0]
[25,null,null,null,null,null,null,"Non",0,null,0,null,null,null,null,null,null,null,null,null,null,null,null,null,null,null,null,null,null,null,null,null,null,null,null,null,null,0,0,0,0,0,0,0,0,0,0,0,0,0,0,0,0]
[26,null,null,null,null,null,null,"Non",0,null,0,null,null,null,null,null,null,null,null,null,null,null,null,null,null,null,null,null,null,null,null,null,null,null,null,null,null,0,0,0,0,0,0,0,0,0,0,0,0,0,0,0,0]
[27,null,null,null,null,null,null,"Non",0,null,0,null,null,null,null,null,null,null,null,null,null,null,null,null,null,null,null,null,null,null,null,null,null,null,null,null,null,0,0,0,0,0,0,0,0,0,0,0,0,0,0,0,0]
[28,null,null,null,null,null,null,"Non",0,null,0,null,null,null,null,null,null,null,null,null,null,null,null,null,null,null,null,null,null,null,null,null,null,null,null,null,null,0,0,0,0,0,{"$f":"IF($AM33>Nbcourse+AQ$3-1-$J33,LARGE($L33:$AK33,Nbcourse+AQ$3-$J33),0)","v":0},0,0,0,0,0,0,0,0,0,0]
[29,null,null,null,null,null,null,"Non",0,null,0,null,null,null,null,null,null,null,null,null,null,null,null,null,null,null,null,null,null,null,null,null,null,null,null,null,null,0,0,{"$f":"IF($AM34>Nbcourse+AN$3-1-$J34,LARGE($L34:$AK34,Nbcourse+AN$3-$J34),0)","v":0},0,0,0,0,0,0,0,0,0,0,0,0,0]
[30,null,null,null,null,null,null,"Non",0,null,0,null,null,null,null,null,null,null,null,null,null,null,null,null,null,null,null,null,null,null,null,null,null,null,null,null,null,0,0,0,0,0,0,0,0,0,0,0,0,0,0,0,0]
[null,null,"Nombre de Participants",null,null,null,null,null,null,null,null,{"$f":"COUNT(L$6:L35)","v":1},{"$f":"COUNT(M$6:M35)","v":1},{"$f":"COUNT(N$6:N35)","v":0},{"$f":"COUNT(O$6:O35)","v":0},{"$f":"COUNT(P$6:P35)","v":0},{"$f":"COUNT(Q$6:Q35)","v":0},{"$f":"COUNT(R$6:R35)","v":0},{"$f":"COUNT(S$6:S35)","v":0},{"$f":"COUNT(T$6:T35)","v":0},{"$f":"COUNT(U$6:U35)","v":0},{"$f":"COUNT(V$6:V35)","v":0},{"$f":"COUNT(W$6:W35)","v":0},{"$f":"COUNT(X$6:X35)","v":0},{"$f":"COUNT(Y$6:Y35)","v":0},{"$f":"COUNT(Z$6:Z35)","v":0},{"$f":"COUNT(AA$6:AA35)","v":0},{"$f":"COUNT(AB$6:AB35)","v":0},{"$f":"COUNT(AC$6:AC35)","v":0},{"$f":"COUNT(AD$6:AD35)","v":0},{"$f":"COUNT(AE$6:AE35)","v":0},{"$f":"COUNT(AF$6:AF35)","v":0},{"$f":"COUNT(AG$6:AG35)","v":0},{"$f":"COUNT(AH$6:AH35)","v":0},{"$f":"COUNT(AI$6:AI35)","v":0},{"$f":"COUNT(AJ$6:AJ35)","v":0},{"$f":"COUNT(AK$6:AK35)","v":0}]
[null,null,null,null,null,"Nb de manches comptabilisées :",{"$f":"Nbcourse","v":5},null,null,null,null,null,null,null,null,null,null,null,null,null,null,null,null,"Pour être classé, il faut avoir participé à au moins",{"$f":"classé/2","v":2},"courses"]

{"sheet":"OPEN","index":8,"n_rows":38,"n_cols":53,"rows_kept":38,"cut":false,"hidden":false,"merged":[[1,39,1,52],[2,25,2,26],[2,33,2,34],[2,35,2,36],[2,27,2,28],[2,29,2,30],[2,31,2,32],[2,23,2,24],[2,13,2,14],[2,9,4,9],[2,11,2,12],[2,15,2,16],[2,10,4,10],[2,17,2,18],[2,19,2,20],[2,21,2,22]]}
["Sens Trophy 2014",null,null,null,null,null,null,null,null,null,null,"OPEN"]
[null,null,null,null,null,null,null,null,null,null,null,null,null,null,null,null,null,null,null,null,null,null,null,null,null,null,null,null,null,null,null,null,null,null,null,null,null,null,null,"Résultats supplémentaires"]
[null,"BFC",null,"Nom","Prénom",null,"ASK","Classé","Total","Nb Hors course","Points Bonus","2014-03-09",null,"2014-06-15",null,null,null,null,null,null,null,null,null,null,null,null,null,null,null,null,null,null,null,null,null,"2014-09-21",null,"Résultat max","Nb manches",1,2,3,4,5,6,7,8,9,10,11,12,13,14]
[null,null,null,null,null,null,null,null,null,null,null,"PF","F","PF","F","PF","F","PF","F","PF","F","PF","F","PF","F","PF","F","PF","F","PF","F","PF","F","PF","F","PF","F"]
[null,null,null,"Bonus Meilleur tour en course",null,null,null,null,null,null,null,"MIGUET Karine",null,"MIEL Sébastien"]
[1,null,null,"MIEL Sébastien",null,null,"Sens",{"$f":"IF(COUNTA(AK6)>0,IF(COUNTA(L6:AK6)<classé,\"Non\",\"Oui\"),\"Non\")","v":"Non"},{"$f":"SUM(L6:AK6)-SUM(AN6:BA6)+K6","v":162},null,{"$f":"COUNTIF(L$5:AK$5,$D6)*4","v":4},32,26,50,50,null,null,null,null,null,null,null,null,null,null,null,null,null,null,null,null,null,null,null,null,null,null,{"$f":"MAX(L6:AK6)","v":50},{"$f":"COUNTA(L6:AK6)","v":4},{"$f":"IF($AM6>Nbcourse+AN$3-1-$J6,LARGE($L6:$AK6,Nbcourse+AN$3-$J6),0)","v":0},0,0,0,0,0,0,0,0,0,0,0,0,0]
[{"$f":"A6+1","v":2},null,null,"PERDRY Alban",null,null,21,"Non",118,null,0,26,20,32,40,null,null,null,null,null,null,null,null,null,null,null,null,null,null,null,null,null,null,null,null,null,null,40,4,0,0,0,0,0,0,0,0,0,0,0,0,0,0]
[3,null,null,"MIGUET Karine",null,null,"Cormeilles","Non",104,null,4,50,50,null,null,null,null,null,null,null,null,null,null,null,null,null,null,null,null,null,null,null,null,null,null,null,null,50,2,0,0,0,0,0,0,0,0,0,0,0,0,0,0]
[4,null,null,"RENAUDIN Julien",null,null,"Wissous","Non",80,null,0,40,40,null,null,null,null,null,null,null,null,null,null,null,null,null,null,null,null,null,null,null,null,null,null,null,null,40,2,0,0,0,0,0,0,0,0,0,0,0,0,0,0]
[5,null,null,"TAHON Olivier",null,null,"Sens","Non",72,null,0,null,null,40,32,null,null,null,null,null,null,null,null,null,null,null,null,null,null,null,null,null,null,null,null,null,null,40,2,0,0,0,0,0,0,0,0,0,0,0,0,0,0]
[6,null,null,"GRANDRY Alain",null,null,"Sens","Non",52,null,0,20,32,null,null,null,null,null,null,null,null,null,null,null,null,null,null,null,null,null,null,null,null,null,null,null,null,32,2,0,0,0,0,0,0,0,0,0,0,0,0,0,0]
[7,null,null,"KRYPCIAK Pierre",null,null,"Sens","Non",41,null,0,22,19,null,null,null,null,null,null,null,null,null,null,null,null,null,null,null,null,null,null,null,null,null,null,null,null,22,2,0,0,0,0,0,0,0,0,0,0,0,0,0,0]
[8,null,null,"RENAUDIN Patrice",null,null,"Wissous","Non",41,null,0,19,22,null,null,null,null,null,null,null,null,null,null,null,null,null,null,null,null,null,null,null,null,null,null,null,null,22,2,0,0,0,0,0,0,0,0,0,0,0,0,0,0]
[9,null,null,null,null,null,null,"Non",0,null,0,null,null,null,null,null,null,null,null,null,null,null,null,null,null,null,null,null,null,null,null,null,null,null,null,null,null,0,0,0,0,0,0,0,0,0,0,0,0,0,0,0,0]
[10,null,null,null,null,null,null,"Non",0,null,0,null,null,null,null,null,null,null,null,null,null,null,null,null,null,null,null,null,null,null,null,null,null,null,null,null,null,0,0,0,0,0,0,0,0,0,0,0,0,0,0,0,0]
[11,null,null,null,null,null,null,"Non",0,null,0,null,null,null,null,null,null,null,null,null,null,null,null,null,null,null,null,null,null,null,null,null,null,null,null,null,null,0,0,{"$f":"IF($AM16>Nbcourse+AN$3-1-$J16,LARGE($L16:$AK16,Nbcourse+AN$3-$J16),0)","v":0},0,0,0,0,0,0,0,0,0,0,0,0,0]
[12,null,null,null,null,null,null,"Non",0,null,0,null,null,null,null,null,null,null,null,null,null,null,null,null,null,null,null,null,null,null,null,null,null,null,null,null,null,0,0,0,0,0,0,0,0,0,0,0,0,0,0,0,0]
[13,null,null,null,null,null,null,"Non",0,null,0,null,null,null,null,null,null,null,null,null,null,null,null,null,null,null,null,null,null,null,null,null,null,null,null,null,null,0,0,0,0,0,0,0,0,0,0,0,0,0,0,0,0]
[14,null,null,null,null,null,null,"Non",0,null,0,null,null,null,null,null,null,null,null,null,null,null,null,null,null,null,null,null,null,null,null,null,null,null,null,null,null,0,0,0,0,0,0,0,0,0,0,0,0,0,0,0,0]
[15,null,null,null,null,null,null,"Non",0,null,0,null,null,null,null,null,null,null,null,null,null,null,null,null,null,null,null,null,null,null,null,null,null,null,null,null,null,0,0,0,0,0,0,0,0,0,0,0,0,0,0,0,0]
[16,null,null,null,null,null,null,"Non",0,null,0,null,null,null,null,null,null,null,null,null,null,null,null,null,null,null,null,null,null,null,null,null,null,null,null,null,null,0,0,0,0,0,0,0,0,0,0,0,0,0,0,0,0]
[17,null,null,null,null,null,null,"Non",0,null,0,null,null,null,null,null,null,null,null,null,null,null,null,null,null,null,null,null,null,null,null,null,null,null,null,null,null,0,0,0,0,0,0,0,0,0,0,0,0,0,0,0,0]
[18,null,null,null,null,null,null,"Non",0,null,0,null,null,null,null,null,null,null,null,null,null,null,null,null,null,null,null,null,null,null,null,null,null,null,null,null,null,0,0,0,0,0,0,0,0,0,0,0,0,0,0,0,0]
[19,null,null,null,null,null,null,"Non",0,null,0,null,null,null,null,null,null,null,null,null,null,null,null,null,null,null,null,null,null,null,null,null,null,null,null,null,null,0,0,0,0,0,0,0,0,0,0,0,0,0,0,0,0]
[20,null,null,null,null,null,null,"Non",0,null,0,null,null,null,null,null,null,null,null,null,null,null,null,null,null,null,null,null,null,null,null,null,null,null,null,null,null,0,{"$f":"COUNTA(L25:AK25)","v":0},0,0,0,0,0,0,0,0,0,0,0,0,0,0]
[21,null,null,null,null,null,null,"Non",0,null,0,null,null,null,null,null,null,null,null,null,null,null,null,null,null,null,null,null,null,null,null,null,null,null,null,null,null,0,0,0,0,0,0,0,0,0,0,0,0,0,0,0,0]
[22,null,null,null,null,null,null,"Non",0,null,0,null,null,null,null,null,null,null,null,null,null,null,null,null,null,null,null,null,null,null,null,null,null,null,null,null,null,0,0,0,0,0,0,0,0,0,0,0,0,0,0,0,0]
[23,null,null,null,null,null,null,"Non",0,null,0,null,null,null,null,null,null,null,null,null,null,null,null,null,null,null,null,null,null,null,null,null,null,null,null,null,null,0,0,0,0,0,0,0,0,0,0,0,0,0,0,0,0]
[24,null,null,null,null,null,null,"Non",0,null,0,null,null,null,null,null,null,null,null,null,null,null,null,null,null,null,null,null,null,null,null,null,null,null,null,null,null,0,0,0,0,0,0,0,0,0,0,0,0,0,0,0,0]
[25,null,null,null,null,null,null,"Non",0,null,0,null,null,null,null,null,null,null,null,null,null,null,null,null,null,null,null,null,null,null,null,null,null,null,null,null,null,0,0,0,0,0,0,0,0,0,0,0,0,0,0,0,0]
[26,null,null,null,null,null,null,"Non",0,null,0,null,null,null,null,null,null,null,null,null,null,null,null,null,null,null,null,null,null,null,null,null,null,null,null,null,null,0,0,0,0,0,0,0,0,0,0,0,0,0,0,0,0]
[27,null,null,null,null,null,null,"Non",0,null,0,null,null,null,null,null,null,null,null,null,null,null,null,null,null,null,null,null,null,null,null,null,null,null,null,null,null,0,0,0,0,0,0,0,0,0,0,0,0,0,0,0,0]
[28,null,null,null,null,null,null,"Non",0,null,0,null,null,null,null,null,null,null,null,null,null,null,null,null,null,null,null,null,null,null,null,null,null,null,null,null,null,0,0,0,0,0,{"$f":"IF($AM33>Nbcourse+AQ$3-1-$J33,LARGE($L33:$AK33,Nbcourse+AQ$3-$J33),0)","v":0},0,0,0,0,0,0,0,0,0,0]
[29,null,null,null,null,null,null,"Non",0,null,0,null,null,null,null,null,null,null,null,null,null,null,null,null,null,null,null,null,null,null,null,null,null,null,null,null,null,0,0,{"$f":"IF($AM34>Nbcourse+AN$3-1-$J34,LARGE($L34:$AK34,Nbcourse+AN$3-$J34),0)","v":0},0,0,0,0,0,0,0,0,0,0,0,0,0]
[30,null,null,null,null,null,null,"Non",0,null,0,null,null,null,null,null,null,null,null,null,null,null,null,null,null,null,null,null,null,null,null,null,null,null,null,null,null,0,0,0,0,0,0,0,0,0,0,0,0,0,0,0,0]
[null,null,"Nombre de Participants",null,null,null,null,null,null,null,null,{"$f":"COUNT(L$6:L35)","v":7},{"$f":"COUNT(M$6:M35)","v":7},{"$f":"COUNT(N$6:N35)","v":3},{"$f":"COUNT(O$6:O35)","v":3},{"$f":"COUNT(P$6:P35)","v":0},{"$f":"COUNT(Q$6:Q35)","v":0},{"$f":"COUNT(R$6:R35)","v":0},{"$f":"COUNT(S$6:S35)","v":0},{"$f":"COUNT(T$6:T35)","v":0},{"$f":"COUNT(U$6:U35)","v":0},{"$f":"COUNT(V$6:V35)","v":0},{"$f":"COUNT(W$6:W35)","v":0},{"$f":"COUNT(X$6:X35)","v":0},{"$f":"COUNT(Y$6:Y35)","v":0},{"$f":"COUNT(Z$6:Z35)","v":0},{"$f":"COUNT(AA$6:AA35)","v":0},{"$f":"COUNT(AB$6:AB35)","v":0},{"$f":"COUNT(AC$6:AC35)","v":0},{"$f":"COUNT(AD$6:AD35)","v":0},{"$f":"COUNT(AE$6:AE35)","v":0},{"$f":"COUNT(AF$6:AF35)","v":0},{"$f":"COUNT(AG$6:AG35)","v":0},{"$f":"COUNT(AH$6:AH35)","v":0},{"$f":"COUNT(AI$6:AI35)","v":0},{"$f":"COUNT(AJ$6:AJ35)","v":0},{"$f":"COUNT(AK$6:AK35)","v":0}]
[null,null,null,null,null,"Nb de manches comptabilisées :",{"$f":"Nbcourse","v":5},null,null,null,null,null,null,null,null,null,null,null,null,null,null,null,null,"Pour être classé, il faut avoir participé à au moins",{"$f":"classé/2","v":2},"courses"]
[null,"Pour la course du 17 Mars , la finale ayant été annulée , les points de la Préfinale ont été doublés"]

{"sheet":"KZ125","index":9,"n_rows":37,"n_cols":53,"rows_kept":37,"cut":false,"hidden":false,"merged":[[1,39,1,52],[2,25,2,26],[2,33,2,34],[2,35,2,36],[2,27,2,28],[2,29,2,30],[2,31,2,32],[2,23,2,24],[2,13,2,14],[2,9,4,9],[2,11,2,12],[2,15,2,16],[2,10,4,10],[2,17,2,18],[2,19,2,20],[2,21,2,22]]}
["Sens Trophy 2014",null,null,null,null,null,null,null,null,null,null,"KZ125"]
[null,null,null,null,null,null,null,null,null,null,null,null,null,null,null,null,null,null,null,null,null,null,null,null,null,null,null,null,null,null,null,null,null,null,null,null,null,null,null,"Résultats supplémentaires"]
[null,"BFC",null,"Nom","Prénom",null,"ASK","Classé","Total","Nb Hors course","Points Bonus","2014-03-09",null,"2014-06-15",null,null,null,null,null,null,null,null,null,null,null,null,null,null,null,null,null,null,null,null,null,"2014-09-21",null,"Résultat max","Nb manches",1,2,3,4,5,6,7,8,9,10,11,12,13,14]
[null,null,null,null,null,null,null,null,null,null,null,"PF","F","PF","F","PF","F","PF","F","PF","F","PF","F","PF","F","PF","F","PF","F","PF","F","PF","F","PF","F","PF","F"]
[null,null,null,"Bonus Meilleur tour en course",null,null,null,null,null,null,null,"KRYPCIAK Pierre",null,"MOREL Benoit"]
[1,null,null,"MOREL Benoit",null,null,"Sens",{"$f":"IF(COUNTA(AK6)>0,IF(COUNTA(L6:AK6)<classé,\"Non\",\"Oui\"),\"Non\")","v":"Non"},{"$f":"SUM(L6:AK6)-SUM(AN6:BA6)+K6","v":186},null,{"$f":"COUNTIF(L$5:AK$5,$D6)*4","v":4},32,50,50,50,null,null,null,null,null,null,null,null,null,null,null,null,null,null,null,null,null,null,null,null,null,null,{"$f":"MAX(L6:AK6)","v":50},{"$f":"COUNTA(L6:AK6)","v":4},{"$f":"IF($AM6>Nbcourse+AN$3-1-$J6,LARGE($L6:$AK6,Nbcourse+AN$3-$J6),0)","v":0},0,0,0,0,0,0,0,0,0,0,0,0,0]
[{"$f":"A6+1","v":2},null,null,"KRYPCIAK Pierre",null,null,"Sens","Non",174,null,4,50,40,40,40,null,null,null,null,null,null,null,null,null,null,null,null,null,null,null,null,null,null,null,null,null,null,50,4,0,0,0,0,0,0,0,0,0,0,0,0,0,0]
[3,null,null,"TOMANIK Mathieu",null,null,"Sens","Non",92,null,0,20,20,26,26,null,null,null,null,null,null,null,null,null,null,null,null,null,null,null,null,null,null,null,null,null,null,26,4,0,0,0,0,0,0,0,0,0,0,0,0,0,0]
[4,null,null,"DELORME Sébastien",null,null,"JBH","Non",77,null,0,19,19,20,19,null,null,null,null,null,null,null,null,null,null,null,null,null,null,null,null,null,null,null,null,null,null,20,4,0,0,0,0,0,0,0,0,0,0,0,0,0,0]
[5,null,null,"VARONA Brice",null,null,"Dourdan","Non",66,null,0,40,26,null,null,null,null,null,null,null,null,null,null,null,null,null,null,null,null,null,null,null,null,null,null,null,null,40,2,0,0,0,0,0,0,0,0,0,0,0,0,0,0]
[6,null,null,"MORANDI William",null,null,"Sens","Non",64,null,0,null,null,32,32,null,null,null,null,null,null,null,null,null,null,null,null,null,null,null,null,null,null,null,null,null,null,32,2,0,0,0,0,0,0,0,0,0,0,0,0,0,0]
[7,null,null,"GODARD Ludovic",null,null,"Enclos","Non",58,null,0,26,32,null,null,null,null,null,null,null,null,null,null,null,null,null,null,null,null,null,null,null,null,null,null,null,null,32,2,0,0,0,0,0,0,0,0,0,0,0,0,0,0]
[8,null,null,"HERBLOT Olivier",null,null,"Bretigny","Non",44,null,0,null,null,22,22,null,null,null,null,null,null,null,null,null,null,null,null,null,null,null,null,null,null,null,null,null,null,22,2,0,0,0,0,0,0,0,0,0,0,0,0,0,0]
[9,null,null,"ROY Maxime",null,null,"Rosny","Non",44,null,0,22,22,null,null,null,null,null,null,null,null,null,null,null,null,null,null,null,null,null,null,null,null,null,null,null,null,22,2,0,0,0,0,0,0,0,0,0,0,0,0,0,0]
[10,null,null,"MAHE Swan",null,null,"Dassault","Non",39,null,0,null,null,19,20,null,null,null,null,null,null,null,null,null,null,null,null,null,null,null,null,null,null,null,null,null,null,20,{"$f":"COUNTA(L15:AK15)","v":2},0,0,0,0,0,0,0,0,0,0,0,0,0,0]
[11,null,null,null,null,null,null,"Non",0,null,0,null,null,null,null,null,null,null,null,null,null,null,null,null,null,null,null,null,null,null,null,null,null,null,null,null,null,0,0,0,0,0,0,0,0,0,0,0,0,0,0,0,0]
[{"$f":"A16+1","v":12},null,null,null,null,null,null,"Non",0,null,0,null,null,null,null,null,null,null,null,null,null,null,null,null,null,null,null,null,null,null,null,null,null,null,null,null,null,0,0,0,0,0,0,0,0,0,0,0,0,0,0,0,0]
[13,null,null,null,null,null,null,"Non",0,null,0,null,null,null,null,null,null,null,null,null,null,null,null,null,null,null,null,null,null,null,null,null,null,null,null,null,null,0,0,0,0,0,0,0,0,0,0,0,0,0,0,0,0]
[14,null,null,null,null,null,null,"Non",0,null,0,null,null,null,null,null,null,null,null,null,null,null,null,null,null,null,null,null,null,null,null,null,null,null,null,null,null,0,0,0,0,0,0,0,0,0,0,0,0,0,0,0,0]
[15,null,null,null,null,null,null,"Non",0,null,0,null,null,null,null,null,null,null,null,null,null,null,null,null,null,null,null,null,null,null,null,null,null,null,null,null,null,0,0,0,0,0,0,0,0,0,0,0,0,0,0,0,0]
[16,null,null,null,null,null,null,"Non",0,null,0,null,null,null,null,null,null,null,null,null,null,null,null,null,null,null,null,null,null,null,null,null,null,null,null,null,null,0,0,0,0,0,0,0,0,0,0,0,0,0,0,0,0]
[17,null,null,null,null,null,null,"Non",0,null,0,null,null,null,null,null,null,null,null,null,null,null,null,null,null,null,null,null,null,null,null,null,null,null,null,null,null,0,0,0,0,0,0,0,0,0,0,0,0,0,0,0,0]
[18,null,null,null,null,null,null,"Non",0,null,0,null,null,null,null,null,null,null,null,null,null,null,null,null,null,null,null,null,null,null,null,null,null,null,null,null,null,0,0,0,0,0,{"$f":"IF($AM23>Nbcourse+AQ$3-1-$J23,LARGE($L23:$AK23,Nbcourse+AQ$3-$J23),0)","v":0},0,0,0,0,0,0,0,0,0,0]
[19,null,null,null,null,null,null,"Non",0,null,0,null,null,null,null,null,null,null,null,null,null,null,null,null,null,null,null,null,null,null,null,null,null,null,null,null,null,0,0,{"$f":"IF($AM24>Nbcourse+AN$3-1-$J24,LARGE($L24:$AK24,Nbcourse+AN$3-$J24),0)","v":0},0,0,0,0,0,0,0,0,0,0,0,0,0]
[20,null,null,null,null,null,null,"Non",0,null,0,null,null,null,null,null,null,null,null,null,null,null,null,null,null,null,null,null,null,null,null,null,null,null,null,null,null,0,{"$f":"COUNTA(L25:AK25)","v":0},0,0,0,0,0,0,0,0,0,0,0,0,0,0]
[21,null,null,null,null,null,null,"Non",0,null,0,null,null,null,null,null,null,null,null,null,null,null,null,null,null,null,null,null,null,null,null,null,null,null,null,null,null,0,0,{"$f":"IF($AM26>Nbcourse+AN$3-1-$J26,LARGE($L26:$AK26,Nbcourse+AN$3-$J26),0)","v":0},0,0,0,0,0,0,0,0,0,0,0,0,0]
[22,null,null,null,null,null,null,"Non",0,null,0,null,null,null,null,null,null,null,null,null,null,null,null,null,null,null,null,null,null,null,null,null,null,null,null,null,null,0,0,0,0,0,0,0,0,0,0,0,0,0,0,0,0]
[23,null,null,null,null,null,null,"Non",0,null,0,null,null,null,null,null,null,null,null,null,null,null,null,null,null,null,null,null,null,null,null,null,null,null,null,null,null,0,0,0,0,0,0,0,0,0,0,0,0,0,0,0,0]
[24,null,null,null,null,null,null,"Non",0,null,0,null,null,null,null,null,null,null,null,null,null,null,null,null,null,null,null,null,null,null,null,null,null,null,null,null,null,0,0,0,0,0,0,0,0,0,0,0,0,0,0,0,0]
[25,null,null,null,null,null,null,"Non",0,null,0,null,null,null,null,null,null,null,null,null,null,null,null,null,null,null,null,null,null,null,null,null,null,null,null,null,null,0,0,0,0,0,0,0,0,0,0,0,0,0,0,0,0]
[26,null,null,null,null,null,null,"Non",0,null,0,null,null,null,null,null,null,null,null,null,null,null,null,null,null,null,null,null,null,null,null,null,null,null,null,null,null,0,0,0,0,0,0,0,0,0,0,0,0,0,0,0,0]
[27,null,null,null,null,null,null,"Non",0,null,0,null,null,null,null,null,null,null,null,null,null,null,null,null,null,null,null,null,null,null,null,null,null,null,null,null,null,0,0,0,0,0,0,0,0,0,0,0,0,0,0,0,0]
[28,null,null,null,null,null,null,"Non",0,null,0,null,null,null,null,null,null,null,null,null,null,null,null,null,null,null,null,null,null,null,null,null,null,null,null,null,null,0,0,0,0,0,0,0,0,0,0,0,0,0,0,0,0]
[29,null,null,null,null,null,null,"Non",0,null,0,null,null,null,null,null,null,null,null,null,null,null,null,null,null,null,null,null,null,null,null,null,null,null,null,null,null,0,0,0,0,0,0,0,0,0,0,0,0,0,0,0,0]
[30,null,null,null,null,null,null,"Non",0,null,0,null,null,null,null,null,null,null,null,null,null,null,null,null,null,null,null,null,null,null,null,null,null,null,null,null,null,0,{"$f":"COUNTA(L35:AK35)","v":0},0,0,0,0,0,0,0,0,0,0,0,0,0,0]
[null,null,"Nombre de Participants",null,null,null,null,null,null,null,null,{"$f":"COUNT(L$6:L35)","v":7},{"$f":"COUNT(M$6:M35)","v":7},{"$f":"COUNT(N$6:N35)","v":7},{"$f":"COUNT(O$6:O35)","v":7},{"$f":"COUNT(P$6:P35)","v":0},{"$f":"COUNT(Q$6:Q35)","v":0},{"$f":"COUNT(R$6:R35)","v":0},{"$f":"COUNT(S$6:S35)","v":0},{"$f":"COUNT(T$6:T35)","v":0},{"$f":"COUNT(U$6:U35)","v":0},{"$f":"COUNT(V$6:V35)","v":0},{"$f":"COUNT(W$6:W35)","v":0},{"$f":"COUNT(X$6:X35)","v":0},{"$f":"COUNT(Y$6:Y35)","v":0},{"$f":"COUNT(Z$6:Z35)","v":0},{"$f":"COUNT(AA$6:AA35)","v":0},{"$f":"COUNT(AB$6:AB35)","v":0},{"$f":"COUNT(AC$6:AC35)","v":0},{"$f":"COUNT(AD$6:AD35)","v":0},{"$f":"COUNT(AE$6:AE35)","v":0},{"$f":"COUNT(AF$6:AF35)","v":0},{"$f":"COUNT(AG$6:AG35)","v":0},{"$f":"COUNT(AH$6:AH35)","v":0},{"$f":"COUNT(AI$6:AI35)","v":0},{"$f":"COUNT(AJ$6:AJ35)","v":0},{"$f":"COUNT(AK$6:AK35)","v":0}]
[null,null,null,null,null,"Nb de manches comptabilisées :",{"$f":"Nbcourse","v":5},null,null,null,null,null,null,null,null,null,null,null,null,null,null,null,null,"Pour être classé, il faut avoir participé à au moins",{"$f":"classé/2","v":2},"courses"]

{"sheet":"KZ125 Gentl","index":10,"n_rows":50,"n_cols":53,"rows_kept":50,"cut":false,"hidden":false,"merged":[[2,23,2,24],[2,13,2,14],[2,9,4,9],[2,11,2,12],[2,15,2,16],[2,10,4,10],[2,17,2,18],[2,19,2,20],[2,21,2,22],[1,39,1,52],[2,25,2,26],[2,33,2,34],[2,35,2,36],[2,27,2,28],[2,29,2,30],[2,31,2,32]]}
["Sens Trophy 2014",null,null,null,null,null,null,"KZ125 Gentlemen"]
[null,null,null,null,null,null,null,null,null,null,null,null,null,null,null,null,null,null,null,null,null,null,null,null,null,null,null,null,null,null,null,null,null,null,null,null,null,null,null,"Résultats supplémentaires"]
[null,"BFC",null,"Nom","Prénom",null,"ASK","Classé","Total","Nb Hors course","Points Bonus","2014-03-09",null,"2014-06-15",null,null,null,null,null,null,null,null,null,null,null,null,null,null,null,null,null,null,null,null,null,"2014-09-21",null,"Résultat max","Nb manches",1,2,3,4,5,6,7,8,9,10,11,12,13,14]
[null,null,null,null,null,null,null,null,null,null,null,"PF","F","PF","F","PF","F","PF","F","PF","F","PF","F","PF","F","PF","F","PF","F","PF","F","PF","F","PF","F","PF","F"]
[null,null,null,"Bonus Meilleur tour en course",null,null,null,null,null,null,null,"BAILLY Thomas",null,"BAILLY Thomas","CAPIETTO Guillaume"]
[1,null,null,"BAILLY Thomas",null,null,"KCAM",{"$f":"IF(COUNTA(AK6)>0,IF(COUNTA(L6:AK6)<classé,\"Non\",\"Oui\"),\"Non\")","v":"Non"},{"$f":"SUM(L6:AK6)-SUM(AN6:BA6)+K6","v":208},null,{"$f":"COUNTIF(L$5:AK$5,$D6)*4","v":8},50,50,50,50,null,null,null,null,null,null,null,null,null,null,null,null,null,null,null,null,null,null,null,null,null,null,{"$f":"MAX(L6:AK6)","v":50},{"$f":"COUNTA(L6:AK6)","v":4},{"$f":"IF($AM6>Nbcourse+AN$3-1-$J6,LARGE($L6:$AK6,Nbcourse+AN$3-$J6),0)","v":0},0,0,0,0,0,0,0,0,0,0,0,0,0]
[{"$f":"A6+1","v":2},null,null,"DZIADUS Laurent",null,null,"Sens","Non",144,null,0,40,40,32,32,null,null,null,null,null,null,null,null,null,null,null,null,null,null,null,null,null,null,null,null,null,null,40,4,0,0,0,0,0,0,0,0,0,0,0,0,0,0]
[{"$f":"A7+1","v":3},null,null,"SANCHEZ Sébastien",null,null,"Sens","Non",102,null,0,32,32,19,19,null,null,null,null,null,null,null,null,null,null,null,null,null,null,null,null,null,null,null,null,null,null,32,4,0,0,0,0,0,0,0,0,0,0,0,0,0,0]
[4,null,null,"VALLÉE Stéphane",null,null,"Sens","Non",92,null,0,26,22,22,22,null,null,null,null,null,null,null,null,null,null,null,null,null,null,null,null,null,null,null,null,null,null,26,4,0,0,0,0,0,0,0,0,0,0,0,0,0,0]
[5,null,null,"SEGUIN Emmanuel",null,null,21,"Non",88,null,0,22,26,20,20,null,null,null,null,null,null,null,null,null,null,null,null,null,null,null,null,null,null,null,null,null,null,26,4,0,0,0,0,0,0,0,0,0,0,0,0,0,0]
[6,null,null,"CAPIETTO Guillaume",null,null,"Dourdan","Non",84,null,4,null,null,40,40,null,null,null,null,null,null,null,null,null,null,null,null,null,null,null,null,null,null,null,null,null,null,40,2,0,0,0,0,0,0,0,0,0,0,0,0,0,0]
[7,null,null,"SERRA Alain",null,null,"Sens","Non",84,null,0,17,15,26,26,null,null,null,null,null,null,null,null,null,null,null,null,null,null,null,null,null,null,null,null,null,null,26,4,0,0,0,0,0,0,0,0,0,0,0,0,0,0]
[8,null,null,"MORONI Rodolphe",null,null,"Sens","Non",36,null,0,20,16,null,null,null,null,null,null,null,null,null,null,null,null,null,null,null,null,null,null,null,null,null,null,null,null,20,2,0,0,0,0,0,0,0,0,0,0,0,0,0,0]
[9,null,null,"SOULAT Michel",null,null,"Sens","Non",36,null,0,19,17,null,null,null,null,null,null,null,null,null,null,null,null,null,null,null,null,null,null,null,null,null,null,null,null,19,2,0,0,0,0,0,0,0,0,0,0,0,0,0,0]
[10,null,null,"ROY Jacky",null,null,"Rosny","Non",36,null,0,18,18,null,null,null,null,null,null,null,null,null,null,null,null,null,null,null,null,null,null,null,null,null,null,null,null,18,2,0,0,0,0,0,0,0,0,0,0,0,0,0,0]
[11,null,null,"BOUISSET André",null,null,"Sens","Non",35,null,0,15,20,null,null,null,null,null,null,null,null,null,null,null,null,null,null,null,null,null,null,null,null,null,null,null,null,20,2,{"$f":"IF($AM16>Nbcourse+AN$3-1-$J16,LARGE($L16:$AK16,Nbcourse+AN$3-$J16),0)","v":0},0,0,0,0,0,0,0,0,0,0,0,0,0]
[12,null,null,"OUASSINI Hakim",null,null,"Ile de France","Non",35,null,0,16,19,null,null,null,null,null,null,null,null,null,null,null,null,null,null,null,null,null,null,null,null,null,null,null,null,19,2,0,0,0,0,0,0,0,0,0,0,0,0,0,0]
[13,null,null,null,null,null,null,"Non",0,null,0,null,null,null,null,null,null,null,null,null,null,null,null,null,null,null,null,null,null,null,null,null,null,null,null,null,null,0,0,0,0,0,0,0,0,0,0,0,0,0,0,0,0]
[14,null,null,null,null,null,null,"Non",0,null,0,null,null,null,null,null,null,null,null,null,null,null,null,null,null,null,null,null,null,null,null,null,null,null,null,null,null,0,0,0,0,0,0,0,0,0,0,0,0,0,0,0,0]
[15,null,null,null,null,null,null,"Non",0,null,0,null,null,null,null,null,null,null,null,null,null,null,null,null,null,null,null,null,null,null,null,null,null,null,null,null,null,0,0,0,0,0,0,0,0,0,0,0,0,0,0,0,0]
[16,null,null,null,null,null,null,"Non",0,null,0,null,null,null,null,null,null,null,null,null,null,null,null,null,null,null,null,null,null,null,null,null,null,null,null,null,null,0,0,0,0,0,0,0,0,0,0,0,0,0,0,0,0]
[17,null,null,null,null,null,null,"Non",0,null,0,null,null,null,null,null,null,null,null,null,null,null,null,null,null,null,null,null,null,null,null,null,null,null,null,null,null,0,0,0,0,0,0,0,0,0,0,0,0,0,0,0,0]
[18,null,null,null,null,null,null,"Non",0,null,0,null,null,null,null,null,null,null,null,null,null,null,null,null,null,null,null,null,null,null,null,null,null,null,null,null,null,0,0,0,0,0,0,0,0,0,0,0,0,0,0,0,0]
[19,null,null,null,null,null,null,"Non",0,null,0,null,null,null,null,null,null,null,null,null,null,null,null,null,null,null,null,null,null,null,null,null,null,null,null,null,null,0,0,0,0,0,0,0,0,0,0,0,0,0,0,0,0]
[20,null,null,null,null,null,null,"Non",0,null,0,null,null,null,null,null,null,null,null,null,null,null,null,null,null,null,null,null,null,null,null,null,null,null,null,null,null,0,{"$f":"COUNTA(L25:AK25)","v":0},0,0,0,0,0,0,0,0,0,0,0,0,0,0]
[21,null,null,null,null,null,null,"Non",0,null,0,null,null,null,null,null,null,null,null,null,null,null,null,null,null,null,null,null,null,null,null,null,null,null,null,null,null,0,0,0,0,0,0,0,0,0,0,0,0,0,0,0,0]
[22,null,null,null,null,null,null,"Non",0,null,0,null,null,null,null,null,null,null,null,null,null,null,null,null,null,null,null,null,null,null,null,null,null,null,null,null,null,0,0,0,0,0,0,0,0,0,0,0,0,0,0,0,0]
[23,null,null,null,null,null,null,"Non",0,null,0,null,null,null,null,null,null,null,null,null,null,null,null,null,null,null,null,null,null,null,null,null,null,null,null,null,null,0,0,0,0,0,0,0,0,0,0,0,0,0,0,0,0]
[24,null,null,null,null,null,null,"Non",0,null,0,null,null,null,null,null,null,null,null,null,null,null,null,null,null,null,null,null,null,null,null,null,null,null,null,null,null,0,0,0,0,0,0,0,0,0,0,0,0,0,0,0,0]
[25,null,null,null,null,null,null,"Non",0,null,0,null,null,null,null,null,null,null,null,null,null,null,null,null,null,null,null,null,null,null,null,null,null,null,null,null,null,0,0,0,0,0,0,0,0,0,0,0,0,0,0,0,0]
[26,null,null,null,null,null,null,"Non",0,null,0,null,null,null,null,null,null,null,null,null,null,null,null,null,null,null,null,null,null,null,null,null,null,null,null,null,null,0,0,0,0,0,0,0,0,0,0,0,0,0,0,0,0]
[27,null,null,null,null,null,null,"Non",0,null,0,null,null,null,null,null,null,null,null,null,null,null,null,null,null,null,null,null,null,null,null,null,null,null,null,null,null,0,0,0,0,0,0,0,0,0,0,0,0,0,0,0,0]
[28,null,null,null,null,null,null,"Non",0,null,0,null,null,null,null,null,null,null,null,null,null,null,null,null,null,null,null,null,null,null,null,null,null,null,null,null,null,0,0,0,0,0,{"$f":"IF($AM33>Nbcourse+AQ$3-1-$J33,LARGE($L33:$AK33,Nbcourse+AQ$3-$J33),0)","v":0},0,0,0,0,0,0,0,0,0,0]
[29,null,null,null,null,null,null,"Non",0,null,0,null,null,null,null,null,null,null,null,null,null,null,null,null,null,null,null,null,null,null,null,null,null,null,null,null,null,0,0,{"$f":"IF($AM34>Nbcourse+AN$3-1-$J34,LARGE($L34:$AK34,Nbcourse+AN$3-$J34),0)","v":0},0,0,0,0,0,0,0,0,0,0,0,0,0]
[30,null,null,null,null,null,null,"Non",0,null,0,null,null,null,null,null,null,null,null,null,null,null,null,null,null,null,null,null,null,null,null,null,null,null,null,null,null,0,0,0,0,0,0,0,0,0,0,0,0,0,0,0,0]
[null,null,"Nombre de Participants",null,null,null,null,null,null,null,null,{"$f":"COUNT(L$6:L35)","v":11},{"$f":"COUNT(M$6:M35)","v":11},{"$f":"COUNT(N$6:N35)","v":7},{"$f":"COUNT(O$6:O35)","v":7},{"$f":"COUNT(P$6:P35)","v":0},{"$f":"COUNT(Q$6:Q35)","v":0},{"$f":"COUNT(R$6:R35)","v":0},{"$f":"COUNT(S$6:S35)","v":0},{"$f":"COUNT(T$6:T35)","v":0},{"$f":"COUNT(U$6:U35)","v":0},{"$f":"COUNT(V$6:V35)","v":0},{"$f":"COUNT(W$6:W35)","v":0},{"$f":"COUNT(X$6:X35)","v":0},{"$f":"COUNT(Y$6:Y35)","v":0},{"$f":"COUNT(Z$6:Z35)","v":0},{"$f":"COUNT(AA$6:AA35)","v":0},{"$f":"COUNT(AB$6:AB35)","v":0},{"$f":"COUNT(AC$6:AC35)","v":0},{"$f":"COUNT(AD$6:AD35)","v":0},{"$f":"COUNT(AE$6:AE35)","v":0},{"$f":"COUNT(AF$6:AF35)","v":0},{"$f":"COUNT(AG$6:AG35)","v":0},{"$f":"COUNT(AH$6:AH35)","v":0},{"$f":"COUNT(AI$6:AI35)","v":0},{"$f":"COUNT(AJ$6:AJ35)","v":0}]
[null,null,null,null,null,"Nb de manches comptabilisées :",{"$f":"Nbcourse","v":5},null,null,null,null,null,null,null,null,null,null,null,null,null,null,null,null,"Pour être classé, il faut avoir participé à au moins",{"$f":"classé/2","v":2},"courses"]
[]
[]
[]
[]
[]
[]
[]
[]
[]
[]
[]
[]
[null,null,null,null,null,null,5]

{"sheet":"X 30G","index":11,"n_rows":38,"n_cols":53,"rows_kept":38,"cut":false,"hidden":false,"merged":[[2,23,2,24],[2,13,2,14],[2,9,4,9],[2,11,2,12],[2,15,2,16],[2,10,4,10],[2,17,2,18],[2,19,2,20],[2,21,2,22],[1,39,1,52],[2,25,2,26],[2,33,2,34],[2,35,2,36],[2,27,2,28],[2,29,2,30],[2,31,2,32]]}
["Sens Trophy 2014",null,null,null,null,null,null,null,null,null,null,"X 30G"]
[null,null,null,null,null,null,null,null,null,null,null,null,null,null,null,null,null,null,null,null,null,null,null,null,null,null,null,null,null,null,null,null,null,null,null,null,null,null,null,"Résultats supplémentaires"]
[null,"BFC",null,"Nom","Prénom",null,"ASK","Classé","Total","Nb Hors course","Points Bonus","2014-03-09",null,"2014-06-15",null,null,null,null,null,null,null,null,null,null,null,null,null,null,null,null,null,null,null,null,null,"2014-09-21",null,"Résultat max","Nb manches",1,2,3,4,5,6,7,8,9,10,11,12,13,14]
[null,null,null,null,null,null,null,null,null,null,null,"PF","F","PF","F","PF","F","PF","F","PF","F","PF","F","PF","F","PF","F","PF","F","PF","F","PF","F","PF","F","PF","F"]
[null,null,null,"Bonus Meilleur tour en course"]
[1,null,null,null,null,null,null,{"$f":"IF(COUNTA(AK6)>0,IF(COUNTA(L6:AK6)<classé,\"Non\",\"Oui\"),\"Non\")","v":"Non"},{"$f":"SUM(L6:AK6)-SUM(AN6:BA6)+K6","v":0},null,{"$f":"COUNTIF(L$5:AK$5,$D6)*4","v":0},null,null,null,null,null,null,null,null,null,null,null,null,null,null,null,null,null,null,null,null,null,null,null,null,null,null,{"$f":"MAX(L6:AK6)","v":0},{"$f":"COUNTA(L6:AK6)","v":0},{"$f":"IF($AM6>Nbcourse+AN$3-1-$J6,LARGE($L6:$AK6,Nbcourse+AN$3-$J6),0)","v":0},0,0,0,0,0,0,0,0,0,0,0,0,0]
[{"$f":"A6+1","v":2},null,null,null,null,null,null,"Non",0,null,0,null,null,null,null,null,null,null,null,null,null,null,null,null,null,null,null,null,null,null,null,null,null,null,null,null,null,0,0,0,0,0,0,0,0,0,0,0,0,0,0,0,0]
[3,null,null,null,null,null,null,"Non",0,null,0,null,null,null,null,null,null,null,null,null,null,null,null,null,null,null,null,null,null,null,null,null,null,null,null,null,null,0,0,0,0,0,0,0,0,0,0,0,0,0,0,0,0]
[4,null,null,null,null,null,null,"Non",0,null,0,null,null,null,null,null,null,null,null,null,null,null,null,null,null,null,null,null,null,null,null,null,null,null,null,null,null,0,0,0,0,0,0,0,0,0,0,0,0,0,0,0,0]
[5,null,null,null,null,null,null,"Non",0,null,0,null,null,null,null,null,null,null,null,null,null,null,null,null,null,null,null,null,null,null,null,null,null,null,null,null,null,0,0,0,0,0,0,0,0,0,0,0,0,0,0,0,0]
[6,null,null,null,null,null,null,"Non",0,null,0,null,null,null,null,null,null,null,null,null,null,null,null,null,null,null,null,null,null,null,null,null,null,null,null,null,null,0,0,0,0,0,0,0,0,0,0,0,0,0,0,0,0]
[7,null,null,null,null,null,null,"Non",0,null,0,null,null,null,null,null,null,null,null,null,null,null,null,null,null,null,null,null,null,null,null,null,null,null,null,null,null,0,0,0,0,0,0,0,0,0,0,0,0,0,0,0,0]
[8,null,null,null,null,null,null,"Non",0,null,0,null,null,null,null,null,null,null,null,null,null,null,null,null,null,null,null,null,null,null,null,null,null,null,null,null,null,0,0,0,0,0,0,0,0,0,0,0,0,0,0,0,0]
[9,null,null,null,null,null,null,"Non",0,null,0,null,null,null,null,null,null,null,null,null,null,null,null,null,null,null,null,null,null,null,null,null,null,null,null,null,null,0,0,0,0,0,0,0,0,0,0,0,0,0,0,0,0]
[10,null,null,null,null,null,null,"Non",0,null,0,null,null,null,null,null,null,null,null,null,null,null,null,null,null,null,null,null,null,null,null,null,null,null,null,null,null,0,0,0,0,0,0,0,0,0,0,0,0,0,0,0,0]
[11,null,null,null,null,null,null,"Non",0,null,0,null,null,null,null,null,null,null,null,null,null,null,null,null,null,null,null,null,null,null,null,null,null,null,null,null,null,0,0,{"$f":"IF($AM16>Nbcourse+AN$3-1-$J16,LARGE($L16:$AK16,Nbcourse+AN$3-$J16),0)","v":0},0,0,0,0,0,0,0,0,0,0,0,0,0]
[12,null,null,null,null,null,null,"Non",0,null,0,null,null,null,null,null,null,null,null,null,null,null,null,null,null,null,null,null,null,null,null,null,null,null,null,null,null,0,0,0,0,0,0,0,0,0,0,0,0,0,0,0,0]
[13,null,null,null,null,null,null,"Non",0,null,0,null,null,null,null,null,null,null,null,null,null,null,null,null,null,null,null,null,null,null,null,null,null,null,null,null,null,0,0,0,0,0,0,0,0,0,0,0,0,0,0,0,0]
[14,null,null,null,null,null,null,"Non",0,null,0,null,null,null,null,null,null,null,null,null,null,null,null,null,null,null,null,null,null,null,null,null,null,null,null,null,null,0,0,0,0,0,0,0,0,0,0,0,0,0,0,0,0]
[15,null,null,null,null,null,null,"Non",0,null,0,null,null,null,null,null,null,null,null,null,null,null,null,null,null,null,null,null,null,null,null,null,null,null,null,null,null,0,0,0,0,0,0,0,0,0,0,0,0,0,0,0,0]
[16,null,null,null,null,null,null,"Non",0,null,0,null,null,null,null,null,null,null,null,null,null,null,null,null,null,null,null,null,null,null,null,null,null,null,null,null,null,0,0,0,0,0,0,0,0,0,0,0,0,0,0,0,0]
[17,null,null,null,null,null,null,"Non",0,null,0,null,null,null,null,null,null,null,null,null,null,null,null,null,null,null,null,null,null,null,null,null,null,null,null,null,null,0,0,0,0,0,0,0,0,0,0,0,0,0,0,0,0]
[18,null,null,null,null,null,null,"Non",0,null,0,null,null,null,null,null,null,null,null,null,null,null,null,null,null,null,null,null,null,null,null,null,null,null,null,null,null,0,0,0,0,0,0,0,0,0,0,0,0,0,0,0,0]
[19,null,null,null,null,null,null,"Non",0,null,0,null,null,null,null,null,null,null,null,null,null,null,null,null,null,null,null,null,null,null,null,null,null,null,null,null,null,0,0,0,0,0,0,0,0,0,0,0,0,0,0,0,0]
[20,null,null,null,null,null,null,"Non",0,null,0,null,null,null,null,null,null,null,null,null,null,null,null,null,null,null,null,null,null,null,null,null,null,null,null,null,null,0,{"$f":"COUNTA(L25:AK25)","v":0},0,0,0,0,0,0,0,0,0,0,0,0,0,0]
[21,null,null,null,null,null,null,"Non",0,null,0,null,null,null,null,null,null,null,null,null,null,null,null,null,null,null,null,null,null,null,null,null,null,null,null,null,null,0,{"$f":"COUNTA(L26:AK26)","v":0},0,0,0,0,0,0,0,0,0,0,0,0,0,0]
[22,null,null,null,null,null,null,"Non",0,null,0,null,null,null,null,null,null,null,null,null,null,null,null,null,null,null,null,null,null,null,null,null,null,null,null,null,null,0,{"$f":"COUNTA(L27:AK27)","v":0},0,0,0,0,0,0,0,0,0,0,0,0,0,0]
[23,null,null,null,null,null,null,"Non",0,null,0,null,null,null,null,null,null,null,null,null,null,null,null,null,null,null,null,null,null,null,null,null,null,null,null,null,null,0,{"$f":"COUNTA(L28:AK28)","v":0},0,0,0,0,0,0,0,0,0,0,0,0,0,0]
[24,null,null,null,null,null,null,"Non",0,null,0,null,null,null,null,null,null,null,null,null,null,null,null,null,null,null,null,null,null,null,null,null,null,null,null,null,null,0,{"$f":"COUNTA(L29:AK29)","v":0},0,0,0,0,0,0,0,0,0,0,0,0,0,0]
[25,null,null,null,null,null,null,"Non",0,null,0,null,null,null,null,null,null,null,null,null,null,null,null,null,null,null,null,null,null,null,null,null,null,null,null,null,null,0,0,0,0,0,0,0,0,0,0,0,0,0,0,0,0]
[26,null,null,null,null,null,null,"Non",0,null,0,null,null,null,null,null,null,null,null,null,null,null,null,null,null,null,null,null,null,null,null,null,null,null,null,null,null,0,0,0,0,0,0,0,0,0,0,0,0,0,0,0,0]
[27,null,null,null,null,null,null,"Non",0,null,0,null,null,null,null,null,null,null,null,null,null,null,null,null,null,null,null,null,null,null,null,null,null,null,null,null,null,0,0,0,0,0,0,0,0,0,0,0,0,0,0,0,0]
[28,null,null,null,null,null,null,"Non",0,null,0,null,null,null,null,null,null,null,null,null,null,null,null,null,null,null,null,null,null,null,null,null,null,null,null,null,null,0,0,0,0,0,{"$f":"IF($AM33>Nbcourse+AQ$3-1-$J33,LARGE($L33:$AK33,Nbcourse+AQ$3-$J33),0)","v":0},0,0,0,0,0,0,0,0,0,0]
[29,null,null,null,null,null,null,"Non",0,null,0,null,null,null,null,null,null,null,null,null,null,null,null,null,null,null,null,null,null,null,null,null,null,null,null,null,null,0,0,{"$f":"IF($AM34>Nbcourse+AN$3-1-$J34,LARGE($L34:$AK34,Nbcourse+AN$3-$J34),0)","v":0},0,0,0,0,0,0,0,0,0,0,0,0,0]
[30,null,null,null,null,null,null,"Non",0,null,0,null,null,null,null,null,null,null,null,null,null,null,null,null,null,null,null,null,null,null,null,null,null,null,null,null,null,0,0,0,0,0,0,0,0,0,0,0,0,0,0,0,0]
[null,null,"Nombre de Participants",null,null,null,null,null,null,null,null,{"$f":"COUNT(L$6:L35)","v":0},{"$f":"COUNT(M$6:M35)","v":0},{"$f":"COUNT(N$6:N35)","v":0},{"$f":"COUNT(O$6:O35)","v":0},{"$f":"COUNT(P$6:P35)","v":0},{"$f":"COUNT(Q$6:Q35)","v":0},{"$f":"COUNT(R$6:R35)","v":0},{"$f":"COUNT(S$6:S35)","v":0},{"$f":"COUNT(T$6:T35)","v":0},{"$f":"COUNT(U$6:U35)","v":0},{"$f":"COUNT(V$6:V35)","v":0},{"$f":"COUNT(W$6:W35)","v":0},{"$f":"COUNT(X$6:X35)","v":0},{"$f":"COUNT(Y$6:Y35)","v":0},{"$f":"COUNT(Z$6:Z35)","v":0},{"$f":"COUNT(AA$6:AA35)","v":0},{"$f":"COUNT(AB$6:AB35)","v":0},{"$f":"COUNT(AC$6:AC35)","v":0},{"$f":"COUNT(AD$6:AD35)","v":0},{"$f":"COUNT(AE$6:AE35)","v":0},{"$f":"COUNT(AF$6:AF35)","v":0},{"$f":"COUNT(AG$6:AG35)","v":0},{"$f":"COUNT(AH$6:AH35)","v":0},{"$f":"COUNT(AI$6:AI35)","v":0},{"$f":"COUNT(AJ$6:AJ35)","v":0},{"$f":"COUNT(AK$6:AK35)","v":0}]
[null,null,null,null,null,"Nb de manches comptabilisées :",{"$f":"Nbcourse","v":5},null,null,null,null,null,null,null,null,null,null,null,null,null,null,null,null,"Pour être classé, il faut avoir participé à au moins",{"$f":"classé/2","v":2},"courses"]
[null,"Pour la course du 17 Mars , la finale ayant été annulée , les points de la Préfinale ont été doublés"]

{"sheet":"Paramétrage","index":12,"n_rows":2,"n_cols":4,"rows_kept":2,"cut":false,"hidden":false,"merged":[]}
[null,null,"Nb de manches pour être classé",4]
[null,null,"Nb de manches comptabilisées",5]